NUMERO_MANDATO;RIGA_MANDATO;QUIET;IMPORTO_RIGA;IMPORTO_MANDATO;BENEFICIARIO;CIG;TITOLO_PAGAMENTO;DATA_MANDATO;CAPITOLO;ARTICOLO;NUMERO_IMPEGNO;TITOLO;DESCR_TITOLO;LIVELLO_II;DESCR_LIVELLO_II;LIVELLO_III;DESCR_LIVELLO_III;LIVELLO_IV;DESCR_LIVELLO_IV;LIVELLO_V;DESCR_LIVELLO_V;DATA_PAG_EFF
869;1;0;56;77,5;ECONOMO COMUNALE - DELLA BIANCA ADRIANA; ;Rimborso bolletta N.    19 del  15-06-18 ACQUISTO CORNICE  PER UFFICIO BIBLIOTECA;03/07/2018;400;0;115;1;Spese correnti;3;Acquisto di beni e servizi;1;Acquisto di beni;2;Altri beni di consumo;1;Carta, cancelleria e stampati;03/07/2018
869;2;0;5,5;77,5;ECONOMO COMUNALE - DELLA BIANCA ADRIANA; ;Rimborso bolletta N.    13 del  18-05-18 QUADERNO PORTALISTINI PER ARCHIVIAZIONE BOLLETTE SERVIZIO ECONOMATO;03/07/2018;400;0;115;1;Spese correnti;3;Acquisto di beni e servizi;1;Acquisto di beni;2;Altri beni di consumo;1;Carta, cancelleria e stampati;03/07/2018
869;3;0;16;77,5;ECONOMO COMUNALE - DELLA BIANCA ADRIANA; ;Rimborso bolletta N.    12 del  18-05-18 MARCA DA BOLLO PER RIATTIVAZIONE CONTRATTO ACQUEDOTTO EX MULINO;03/07/2018;400;0;115;1;Spese correnti;3;Acquisto di beni e servizi;1;Acquisto di beni;2;Altri beni di consumo;1;Carta, cancelleria e stampati;03/07/2018
870;1;0;90;90;ECONOMO COMUNALE - DELLA BIANCA ADRIANA; ;Rimborso bolletta N.    14 del  18-05-18 SERVIZIO LAVANDERIA COPERTE E LENZUOLA IN UTILIZZO FORZE DELL'ORDINE PER SERVIZIO VIGILANZA AI SEGGI ELETTORALI POLITICHE 2018;03/07/2018;435;0;114;1;Spese correnti;3;Acquisto di beni e servizi;2;Acquisto di servizi;99;Altri servizi;999;Altri servizi diversi n.a.c.;03/07/2018
871;1;0;50;50;ECONOMO COMUNALE - DELLA BIANCA ADRIANA; ;Rimborso bolletta N.     9 del  10-04-18 ACQUISTO FRANCOBOLLI PER PRESTITO INTERBIBLIOTECARIO (DT 115/2018) IN ANTICIPO SU 188,00 EURO;03/07/2018;650;0;142;1;Spese correnti;3;Acquisto di beni e servizi;2;Acquisto di servizi;16;Servizi amministrativi;2;Spese postali;03/07/2018
872;1;0;52;52;ECONOMO COMUNALE - DELLA BIANCA ADRIANA; ;Rimborso bolletta N.    11 del  24-04-18 MATERIALE PER PROTEZIONE CIVILE: OLIO PER MOTOSEGA E MISCELA PER MOTOSEGA;03/07/2018;670;0;121;1;Spese correnti;3;Acquisto di beni e servizi;1;Acquisto di beni;2;Altri beni di consumo;2;Carburanti, combustibili e lubrificanti;03/07/2018
873;1;0;119;119;ECONOMO COMUNALE - DELLA BIANCA ADRIANA; ;Rimborso bolletta N.    15 del  29-05-18 ACQUISTO DISPOSITIVI MEDICO-SANITARI PER RIPRISTINO CONTENUTO CASSETTA PRONTO SOCCORSO-PRODOTTI DI PRIMO SOCCORSO;03/07/2018;3180;0;124;1;Spese correnti;3;Acquisto di beni e servizi;1;Acquisto di beni;2;Altri beni di consumo;999;Altri beni e materiali di consumo n.a.c.;03/07/2018
874;1;0;100;100;ECONOMO COMUNALE - DELLA BIANCA ADRIANA; ;Rimborso bolletta N.    17 del  15-06-18 ACQUISTO MATERIALE DI CONSUMO PER ATTREZZATURE MANUTENZIONE DEL VERDE: TESTE (PER FILO) DEI DECESPUGLIATORI;03/07/2018;6200;0;127;1;Spese correnti;3;Acquisto di beni e servizi;1;Acquisto di beni;2;Altri beni di consumo;999;Altri beni e materiali di consumo n.a.c.;03/07/2018
875;1;0;90;90;ECONOMO COMUNALE - DELLA BIANCA ADRIANA; ;Rimborso bolletta N.    16 del  15-06-18 ACQUISTO MATERIALE DI CONSUMO PER ATTREZZATURE MANUTENZIONE DEL VERDE: FILO PER TESTE DA TAGLIO DEI DECESPUGLIATORI;03/07/2018;6210;0;128;1;Spese correnti;3;Acquisto di beni e servizi;2;Acquisto di servizi;9;Manutenzione ordinaria e riparazioni;1;Manutenzione ordinaria e riparazioni di mezzi di trasporto ad uso civile, di sicurezza e ordine pubblico;03/07/2018
876;1;0;102,02;102,02;ECONOMO COMUNALE - DELLA BIANCA ADRIANA; ;Rimborso bolletta N.    10 del  18-04-18 ACQUISTO MATERIALI : PULEGGIA, CUSCINETTO, CINGHIE, BOCCOLA;03/07/2018;7370;0;130;1;Spese correnti;3;Acquisto di beni e servizi;1;Acquisto di beni;2;Altri beni di consumo;8;Strumenti tecnico-specialistici non sanitari;03/07/2018
879;1;0;4.384,50;4.384,50;CASSA DEPOSITI E PRESTITI; ;CDP-RATE MUTUI 30.06.2018 (P.      21 -R.);04/07/2018;600;0;278;1;Spese correnti;7;Interessi passivi;5;Interessi su Mutui e altri finanziamenti a medio lungo termine;4;Interessi passivi su finanziamenti a medio lungo termine a Imprese;3;Interessi passivi a Cassa Depositi e Prestiti SPA su mutui e altri finanziamenti a medio lungo termine;04/07/2018
880;1;0;633,31;633,31;CASSA DEPOSITI E PRESTITI; ;CDP-RATE MUTUI 30.06.2018 (P.      22 -R.);04/07/2018;600;0;279;1;Spese correnti;7;Interessi passivi;5;Interessi su Mutui e altri finanziamenti a medio lungo termine;4;Interessi passivi su finanziamenti a medio lungo termine a Imprese;4;Interessi passivi a Cassa Depositi e Prestiti - Gestione Tesoro su mutui e altri finanziamenti a medio lungo termine;04/07/2018
881;1;0;9.052,85;9.052,85;CASSA DEPOSITI E PRESTITI; ;CDP-RATE MUTUI 30.06.2018 (P.      21 -R.);04/07/2018;3610;0;280;1;Spese correnti;7;Interessi passivi;5;Interessi su Mutui e altri finanziamenti a medio lungo termine;4;Interessi passivi su finanziamenti a medio lungo termine a Imprese;3;Interessi passivi a Cassa Depositi e Prestiti SPA su mutui e altri finanziamenti a medio lungo termine;04/07/2018
882;1;0;679,27;679,27;CASSA DEPOSITI E PRESTITI; ;CDP-RATE MUTUI 30.06.2018 (P.      22 -R.);04/07/2018;3610;0;281;1;Spese correnti;7;Interessi passivi;5;Interessi su Mutui e altri finanziamenti a medio lungo termine;4;Interessi passivi su finanziamenti a medio lungo termine a Imprese;4;Interessi passivi a Cassa Depositi e Prestiti - Gestione Tesoro su mutui e altri finanziamenti a medio lungo termine;04/07/2018
883;1;0;322,73;322,73;CASSA DEPOSITI E PRESTITI; ;CDP-RATE MUTUI 30.06.2018 (P.      21 -R.);04/07/2018;3611;0;275;1;Spese correnti;7;Interessi passivi;5;Interessi su Mutui e altri finanziamenti a medio lungo termine;4;Interessi passivi su finanziamenti a medio lungo termine a Imprese;4;Interessi passivi a Cassa Depositi e Prestiti - Gestione Tesoro su mutui e altri finanziamenti a medio lungo termine;04/07/2018
884;1;0;1.746,48;1.746,48;ISTITUTO PER IL CREDITO SPORTIVO; ;IST. CREDITO SPORTIVO-RATE MUTUI 30.06.2018 (P.      20 -R.);04/07/2018;3612;0;282;1;Spese correnti;7;Interessi passivi;5;Interessi su Mutui e altri finanziamenti a medio lungo termine;4;Interessi passivi su finanziamenti a medio lungo termine a Imprese;999;Interessi passivi a altre imprese su finanziamenti a medio lungo termine;04/07/2018
885;1;0;166,78;166,78;CASSA DEPOSITI E PRESTITI; ;CDP-RATE MUTUI 30.06.2018 (P.      21 -R.);04/07/2018;5240;0;277;1;Spese correnti;7;Interessi passivi;5;Interessi su Mutui e altri finanziamenti a medio lungo termine;4;Interessi passivi su finanziamenti a medio lungo termine a Imprese;3;Interessi passivi a Cassa Depositi e Prestiti SPA su mutui e altri finanziamenti a medio lungo termine;04/07/2018
886;1;0;5.937,15;5.937,15;CASSA DEPOSITI E PRESTITI; ;CDP-RATE MUTUI 30.06.2018 (P.      21 -R.);04/07/2018;5680;0;283;1;Spese correnti;7;Interessi passivi;5;Interessi su Mutui e altri finanziamenti a medio lungo termine;4;Interessi passivi su finanziamenti a medio lungo termine a Imprese;3;Interessi passivi a Cassa Depositi e Prestiti SPA su mutui e altri finanziamenti a medio lungo termine;04/07/2018
887;1;0;24.063,06;24.063,06;CASSA DEPOSITI E PRESTITI; ;CDP-RATE MUTUI 30.06.2018 (P.      21 -R.);04/07/2018;7500;0;276;1;Spese correnti;7;Interessi passivi;5;Interessi su Mutui e altri finanziamenti a medio lungo termine;4;Interessi passivi su finanziamenti a medio lungo termine a Imprese;3;Interessi passivi a Cassa Depositi e Prestiti SPA su mutui e altri finanziamenti a medio lungo termine;04/07/2018
891;1;0;652;652;CEV - CONSORZIO ENERGIA VENETO; ;SALDO Fatt.n. 293-2018-00  del 16/04/2018 QUOTA ASSOCIATIVA ANNO 2018;09/07/2018;570;0;304;1;Spese correnti;4;Trasferimenti correnti;1;Trasferimenti correnti a Amministrazioni Pubbliche;2;Trasferimenti correnti a Amministrazioni Locali;18;Trasferimenti correnti a Consorzi di enti locali;09/07/2018
892;1;0;1.402,95;1.402,95;S.A.I.E.S. S.R.L.;ZBA2114511;SALDO Fatt.n. 35  del 26/02/2018;09/07/2018;660;0;383;1;Spese correnti;3;Acquisto di beni e servizi;2;Acquisto di servizi;19;Servizi informatici e di telecomunicazioni;1;Gestione e manutenzione applicazioni;09/07/2018
893;1;0;355;355;S.E.P.E.L. DI MARIA CHIARA SOLDATI & C. S.A.S.; ;SEPEL - QUOTA ASSOCIATIVA ANNO 2018;09/07/2018;470;0;262;1;Spese correnti;3;Acquisto di beni e servizi;1;Acquisto di beni;1;Giornali, riviste e pubblicazioni;1;Giornali e riviste;09/07/2018
894;1;0;310;310;A.N.U.S.C.A. SRL; ;ANUSCA - QUOTA ASSOCIATIVA ANNO 2018;09/07/2018;470;0;261;1;Spese correnti;3;Acquisto di beni e servizi;1;Acquisto di beni;1;Giornali, riviste e pubblicazioni;1;Giornali e riviste;09/07/2018
895;1;0;268,4;268,4;PITNEY BOWES ITALIA SRL;Z6D2298B1D;SALDO Fatt.n. 000892  del 13/03/2018;09/07/2018;400;0;297;1;Spese correnti;3;Acquisto di beni e servizi;1;Acquisto di beni;2;Altri beni di consumo;1;Carta, cancelleria e stampati;09/07/2018
896;1;0;387,2;387,2;AZ. AGRICOLA VIVAI LIVIO TOFFOLI S.S.-SOCIETA' AGRICOLA;ZF32267D85;SALDO Fatt.n. FATTPA 8_18  del 28/03/2018;09/07/2018;6200;0;265;1;Spese correnti;3;Acquisto di beni e servizi;1;Acquisto di beni;2;Altri beni di consumo;999;Altri beni e materiali di consumo n.a.c.;09/07/2018
897;1;0;6.435,00;6.435,00;LORIS VIAGGI DI FONTANEL LORIS;6784409F67;SALDO Fatt.n. PA0132018  del 31/05/2018 TRASPORTO SCOLASTICO MESE MAGGIO 2018;09/07/2018;3420;0;333;1;Spese correnti;3;Acquisto di beni e servizi;2;Acquisto di servizi;15;Contratti di servizio pubblico;2;Contratti di servizio di trasporto scolastico;09/07/2018
898;1;0;903,74;1.807,52;PIANEZZOLA CLAUDIO;Z891E8FFF5;SALDO Fatt.n. 12/01  del 31/05/2018;09/07/2018;7460;1;211;1;Spese correnti;3;Acquisto di beni e servizi;2;Acquisto di servizi;15;Contratti di servizio pubblico;15;Contratti di servizio per l'illuminazione pubblica;09/07/2018
898;2;0;903,78;1.807,52;PIANEZZOLA CLAUDIO;Z891E8FFF5;SALDO Fatt.n. 09/01  del 30/04/2018;09/07/2018;7460;1;211;1;Spese correnti;3;Acquisto di beni e servizi;2;Acquisto di servizi;15;Contratti di servizio pubblico;15;Contratti di servizio per l'illuminazione pubblica;09/07/2018
899;1;0;0,02;0,02;PIANEZZOLA CLAUDIO;Z891E8FFF5;ACCONTO Fatt.n. 12/01  del 31/05/2018;09/07/2018;7460;1;211;1;Spese correnti;3;Acquisto di beni e servizi;2;Acquisto di servizi;15;Contratti di servizio pubblico;15;Contratti di servizio per l'illuminazione pubblica;09/07/2018
900;1;0;0,02;0,02;PIANEZZOLA CLAUDIO;Z092344006;SALDO Fatt.n. 12/01  del 31/05/2018;09/07/2018;7460;1;180;1;Spese correnti;3;Acquisto di beni e servizi;2;Acquisto di servizi;15;Contratti di servizio pubblico;15;Contratti di servizio per l'illuminazione pubblica;09/07/2018
901;1;0;1.525,00;1.525,00;PIANEZZOLA CLAUDIO;ZA2238AC86;SALDO Fatt.n. 14/01  del 25/06/2018;09/07/2018;661;0;177;1;Spese correnti;3;Acquisto di beni e servizi;2;Acquisto di servizi;9;Manutenzione ordinaria e riparazioni;8;Manutenzione ordinaria e riparazioni di beni immobili;09/07/2018
902;1;0;1.549,40;1.549,40;PIANEZZOLA CLAUDIO;Z6723CC278;SALDO Fatt.n. 13/01  del 25/06/2018;09/07/2018;7460;0;169;1;Spese correnti;3;Acquisto di beni e servizi;2;Acquisto di servizi;15;Contratti di servizio pubblico;15;Contratti di servizio per l'illuminazione pubblica;09/07/2018
903;1;0;22,19;22,19;COMUNE DI SESTO AL REGHENA; ;RIMBORSO AL COMUNE DI SESTO AL REGHENA PER FORNITURA LIBRI DI TESTO AD ALUNNO SCUOLA PRIMARIA RESIDENTE A CINTO CAOMAGGIORE E FREQUENTANTE PRIMARIA A SESTO AL REGHENA;09/07/2018;2985;0;260;1;Spese correnti;4;Trasferimenti correnti;1;Trasferimenti correnti a Amministrazioni Pubbliche;2;Trasferimenti correnti a Amministrazioni Locali;3;Trasferimenti correnti a Comuni;09/07/2018
904;1;0;488;488;SECURE-IT SNC DI MASSARUT & CESCHIAT;Z5B2369F77;SALDO Fatt.n. 7/PA  del 14/06/2018 Servizio di manutenzione impianti di rilevazione incendio e spegnimento automatico Scuola Secondaria I grado decorrenza 01/01/2018-31/12/2018.;09/07/2018;3181;0;224;1;Spese correnti;3;Acquisto di beni e servizi;2;Acquisto di servizi;9;Manutenzione ordinaria e riparazioni;4;Manutenzione ordinaria e riparazioni di impianti e macchinari;09/07/2018
905;1;0;4.446,90;4.446,90;EUGANEA INNOVAZIONE SRL;ZD42313266;SALDO Fatt.n. 49  del 24/05/2018 AFM 2018 + HD SERVER;09/07/2018;660;0;144;1;Spese correnti;3;Acquisto di beni e servizi;2;Acquisto di servizi;19;Servizi informatici e di telecomunicazioni;5;Servizi per i sistemi e relativa manutenzione;09/07/2018
906;1;0;329,4;329,4;IDROTERMICA DI GIBBONI EDIO;ZC923F583A;SALDO Fatt.n. 000004-2018-PA  del 16/06/2018;09/07/2018;5185;0;269;1;Spese correnti;3;Acquisto di beni e servizi;2;Acquisto di servizi;9;Manutenzione ordinaria e riparazioni;8;Manutenzione ordinaria e riparazioni di beni immobili;09/07/2018
907;1;0;4.789,99;4.789,99;CARBONE STEFANO;ZBE226A42E;SALDO Fatt.n. FATTPA 11_18  del 04/06/2018;09/07/2018;3940;1;266;1;Spese correnti;3;Acquisto di beni e servizi;2;Acquisto di servizi;11;Prestazioni professionali e specialistiche;999;Altre prestazioni professionali e specialistiche n.a.c.;09/07/2018
908;1;0;179,99;179,99;CED DIGITAL & SERVIZI SRL;Z16240C4C2;"ABBONAMENTO AL ""IL GAZZETTINO"" FORMATO  ""SOLO ON LINE"" CAUSALE CODICE ORDINE 2018152672 DEL 10.04.2018";09/07/2018;3755;0;305;1;Spese correnti;3;Acquisto di beni e servizi;1;Acquisto di beni;1;Giornali, riviste e pubblicazioni;2;Pubblicazioni;09/07/2018
909;1;0;180;180;FINEGIL EDITORIALE SPA  DIVISIONE NORD EST;Z16240C4C2;ABBONAMENTO A LA NUOVA VENEZIA FORMULA RITIRO IN EDICOLA 7 GG. LA SETTIMANA PER UN ANNO;09/07/2018;3755;0;306;1;Spese correnti;3;Acquisto di beni e servizi;1;Acquisto di beni;1;Giornali, riviste e pubblicazioni;2;Pubblicazioni;09/07/2018
910;1;0;48;48;GIUNTI EDITORE SPA  - ART & DOSSIER;Z16240C4C2;ABBONAMENTO ANNUALE ART E DOSSIER / GIUNTI EDITORE;09/07/2018;3755;0;307;1;Spese correnti;3;Acquisto di beni e servizi;1;Acquisto di beni;1;Giornali, riviste e pubblicazioni;2;Pubblicazioni;09/07/2018
911;1;0;45;45;"ASSOCIAZIONE CULTURALE ""IL PEPEVERDE""";Z16240C4C2;ABBONAMENTO AL IL PEPE VERDE ANNO 2018;09/07/2018;3755;0;308;1;Spese correnti;3;Acquisto di beni e servizi;1;Acquisto di beni;1;Giornali, riviste e pubblicazioni;2;Pubblicazioni;09/07/2018
913;1;0;1.175,96;1.175,96;COMUNE DI PORTOGRUARO; ;CITTA' DI PORTOGRUARO -  QUOTA AFFITTO CENTRO PER L'IMPIEGO -  ANNO 2018;13/07/2018;402;0;311;1;Spese correnti;3;Acquisto di beni e servizi;2;Acquisto di servizi;7;Utilizzo di beni di terzi;1;Locazione di beni immobili;13/07/2018
914;1;0;463,6;463,6;IDROTERMICA DI GIBBONI EDIO;ZF23782FE;SALDO Fatt.n. 000003-2018-PA  del 21/05/2018;13/07/2018;590;0;218;1;Spese correnti;3;Acquisto di beni e servizi;2;Acquisto di servizi;9;Manutenzione ordinaria e riparazioni;4;Manutenzione ordinaria e riparazioni di impianti e macchinari;13/07/2018
915;1;0;2.440,00;2.440,00;MONTE DEI PASCHI DI SIENA SPA;Z27175A838;SALDO Fatt.n. 20000059  del 11/01/2018 COMPENSO SERVIZIO TESORERIA 2^ SEMESTRE 2017;13/07/2018;217;0;380;1;Spese correnti;3;Acquisto di beni e servizi;2;Acquisto di servizi;17;Servizi finanziari;2;Oneri per servizio di tesoreria;13/07/2018
916;1;0;2.440,00;2.440,00;MONTE DEI PASCHI DI SIENA SPA;Z27175A838;SALDO Fatt.n. 20001091  del 27/06/2018 1^ SEMESTRE 2018;13/07/2018;217;0;380;1;Spese correnti;3;Acquisto di beni e servizi;2;Acquisto di servizi;17;Servizi finanziari;2;Oneri per servizio di tesoreria;13/07/2018
917;1;0;1.500,00;1.500,00;PITNEY BOWES ITALIA SRL;ZC1243684F;12922-5327239-COMUNE DI CINTO CAOMAGGIORE;13/07/2018;650;0;300;1;Spese correnti;3;Acquisto di beni e servizi;2;Acquisto di servizi;16;Servizi amministrativi;2;Spese postali;13/07/2018
918;1;0;116,51;116,51;PITNEY BOWES ITALIA SRL;Z0C22B0ACE;SALDO Fatt.n. 002154  del 22/06/2018;16/07/2018;593;0;254;1;Spese correnti;3;Acquisto di beni e servizi;2;Acquisto di servizi;5;Utenze e canoni;999;Utenze e canoni per altri servizi n.a.c.;16/07/2018
919;1;0;323,59;323,59;A.N.C.I. VENETO; ;ANCI VENETO - QUOTA ASSOCIATIVA ANNO 2018;16/07/2018;570;0;312;1;Spese correnti;4;Trasferimenti correnti;1;Trasferimenti correnti a Amministrazioni Pubbliche;2;Trasferimenti correnti a Amministrazioni Locali;3;Trasferimenti correnti a Comuni;16/07/2018
920;1;0;154,88;929,28;OLIVETTI SPA;Z050E4F4CA;SALDO Fatt.n. 0000002473  del 12/02/2018 riferimento mese gennaio 2018;16/07/2018;593;1;313;1;Spese correnti;3;Acquisto di beni e servizi;2;Acquisto di servizi;5;Utenze e canoni;1;Telefonia fissa;16/07/2018
920;2;0;154,88;929,28;OLIVETTI SPA;Z050E4F4CA;SALDO Fatt.n. 0000004094  del 12/03/2018 riferimento mese febbraio 2018;16/07/2018;593;1;313;1;Spese correnti;3;Acquisto di beni e servizi;2;Acquisto di servizi;5;Utenze e canoni;1;Telefonia fissa;16/07/2018
920;3;0;154,88;929,28;OLIVETTI SPA;Z050E4F4CA;SALDO Fatt.n. 0000005998  del 12/04/2018 periodo marzo 2018;16/07/2018;593;1;313;1;Spese correnti;3;Acquisto di beni e servizi;2;Acquisto di servizi;5;Utenze e canoni;1;Telefonia fissa;16/07/2018
920;4;0;154,88;929,28;OLIVETTI SPA;Z050E4F4CA;SALDO Fatt.n. 0000007880  del 17/05/2018 riferimento mese aprile 2018;16/07/2018;593;1;313;1;Spese correnti;3;Acquisto di beni e servizi;2;Acquisto di servizi;5;Utenze e canoni;1;Telefonia fissa;16/07/2018
920;5;0;154,88;929,28;OLIVETTI SPA;Z050E4F4CA;SALDO Fatt.n. 0000009708  del 14/06/2018 mese maggio 2018;16/07/2018;593;1;313;1;Spese correnti;3;Acquisto di beni e servizi;2;Acquisto di servizi;5;Utenze e canoni;1;Telefonia fissa;16/07/2018
920;6;0;154,88;929,28;OLIVETTI SPA;Z050E4F4CA;SALDO Fatt.n. 0000011186  del 09/07/2018 periodo giugno 2018;16/07/2018;593;1;313;1;Spese correnti;3;Acquisto di beni e servizi;2;Acquisto di servizi;5;Utenze e canoni;1;Telefonia fissa;16/07/2018
921;1;0;39,47;80,73;ENEL ENERGIA SPA - SOC. CON UNICO SOCIO; ;Fatt.n. 004811099700  del 06/07/2018 GAS MESE 06/2018 - VIA TRIESTE 2;17/07/2018;593;2;90;1;Spese correnti;3;Acquisto di beni e servizi;2;Acquisto di servizi;5;Utenze e canoni;6;Gas;17/07/2018
921;2;0;41,26;80,73;ENEL ENERGIA SPA - SOC. CON UNICO SOCIO; ;Fatt.n. 004810940728  del 07/06/2018 GAS MESE 05/2018 - VIA TRIESTE 2;17/07/2018;593;2;90;1;Spese correnti;3;Acquisto di beni e servizi;2;Acquisto di servizi;5;Utenze e canoni;6;Gas;17/07/2018
922;1;0;11,33;22,66;ENEL ENERGIA SPA - SOC. CON UNICO SOCIO; ;Fatt.n. 004811106403  del 06/07/2018 GAS MESE 06/2018 - VIA MARCONI 25;17/07/2018;593;5;88;1;Spese correnti;3;Acquisto di beni e servizi;2;Acquisto di servizi;5;Utenze e canoni;6;Gas;17/07/2018
922;2;0;11,33;22,66;ENEL ENERGIA SPA - SOC. CON UNICO SOCIO; ;Fatt.n. 004810907688  del 07/06/2018 GAS MESE 05/2018 - VIA MARCONI N. 25;17/07/2018;593;5;88;1;Spese correnti;3;Acquisto di beni e servizi;2;Acquisto di servizi;5;Utenze e canoni;6;Gas;17/07/2018
923;1;0;15,87;31,74;ENEL ENERGIA SPA - SOC. CON UNICO SOCIO; ;Fatt.n. 004811125229  del 06/07/2018 GAS MESE 06/2018 - VIA MARCONI N. 26;17/07/2018;593;6;89;1;Spese correnti;3;Acquisto di beni e servizi;2;Acquisto di servizi;5;Utenze e canoni;6;Gas;17/07/2018
923;2;0;15,87;31,74;ENEL ENERGIA SPA - SOC. CON UNICO SOCIO; ;Fatt.n. 004810931502  del 07/06/2018 GAS MESE 05/2018 - VIA MARCONI N. 26;17/07/2018;593;6;89;1;Spese correnti;3;Acquisto di beni e servizi;2;Acquisto di servizi;5;Utenze e canoni;6;Gas;17/07/2018
924;1;0;11,33;22,66;ENEL ENERGIA SPA - SOC. CON UNICO SOCIO; ;Fatt.n. 004811111974  del 06/07/2018 GAS MESE 06/2018 - CENTRO CULTURALE;17/07/2018;595;0;91;1;Spese correnti;3;Acquisto di beni e servizi;2;Acquisto di servizi;5;Utenze e canoni;6;Gas;17/07/2018
924;2;0;11,33;22,66;ENEL ENERGIA SPA - SOC. CON UNICO SOCIO; ;Fatt.n. 004810957672  del 07/06/2018 GAS MESE 05/2018 - C.CULTURALE V. UDINE;17/07/2018;595;0;91;1;Spese correnti;3;Acquisto di beni e servizi;2;Acquisto di servizi;5;Utenze e canoni;6;Gas;17/07/2018
925;1;0;28,06;533,01;TELECOM ITALIA S.p.A.;X700D1930B;Fatt.n. 8A00244458  del 06/04/2018 3BIM 2018 LINEA SERVER;17/07/2018;593;1;313;1;Spese correnti;3;Acquisto di beni e servizi;2;Acquisto di servizi;5;Utenze e canoni;1;Telefonia fissa;17/07/2018
925;2;0;52,45;533,01;TELECOM ITALIA S.p.A.;X700D1930B;Fatt.n. 8E00285214  del 06/04/2018 3BIM 2018 0421/241030 FAX;17/07/2018;593;1;313;1;Spese correnti;3;Acquisto di beni e servizi;2;Acquisto di servizi;5;Utenze e canoni;1;Telefonia fissa;17/07/2018
925;3;0;74,14;533,01;TELECOM ITALIA S.p.A.;X700D1930B;Fatt.n. 8E00285490  del 06/04/2018 3BIM 2018 0421 209535 CENTRALINO;17/07/2018;593;1;313;1;Spese correnti;3;Acquisto di beni e servizi;2;Acquisto di servizi;5;Utenze e canoni;1;Telefonia fissa;17/07/2018
925;4;0;166,3;533,01;TELECOM ITALIA S.p.A.;X700D1930B;Fatt.n. 8E00286403  del 06/04/2018 3BIM 2018 0421241265 CENTRALINO;17/07/2018;593;1;313;1;Spese correnti;3;Acquisto di beni e servizi;2;Acquisto di servizi;5;Utenze e canoni;1;Telefonia fissa;17/07/2018
925;5;0;212,06;533,01;TELECOM ITALIA S.p.A.;X700D1930B;Fatt.n. 8E00285625  del 06/04/2018 3BIM 2018 0421209534 CENTRALINO;17/07/2018;593;1;313;1;Spese correnti;3;Acquisto di beni e servizi;2;Acquisto di servizi;5;Utenze e canoni;1;Telefonia fissa;17/07/2018
926;1;0;120,12;120,12;TELECOM ITALIA S.p.A.;X700D1930B;Fatt.n. 8E00288369  del 06/04/2018 3BIM 2018 - 0421209513 SCUOLA MATERNA;17/07/2018;2975;1;317;1;Spese correnti;3;Acquisto di beni e servizi;2;Acquisto di servizi;5;Utenze e canoni;1;Telefonia fissa;17/07/2018
927;1;0;149,74;149,74;TELECOM ITALIA S.p.A.;X700D1930B;Fatt.n. 8E00285503  del 06/04/2018 3BIM 2018 - INTERNET SCUOLA MEDIA - 0421/209501;17/07/2018;3186;1;318;1;Spese correnti;3;Acquisto di beni e servizi;2;Acquisto di servizi;5;Utenze e canoni;1;Telefonia fissa;17/07/2018
928;1;0;2.327,54;2.327,54;COLLABORATORI E AMMINISTRATORI DIVERSI; ;STIPENDI MESE DI: LUGLIO 18;18/07/2018;10;0;50;1;Spese correnti;3;Acquisto di beni e servizi;2;Acquisto di servizi;1;Organi e incarichi istituzionali dell'amministrazione;1;Organi istituzionali dell'amministrazione - Indennità;18/07/2018
960;1;0;28,3;28,3;DIPENDENTI COMUNALI DIVERSI; ;STIPENDI MESE DI: LUGLIO 18;18/07/2018;230;0;94;1;Spese correnti;3;Acquisto di beni e servizi;2;Acquisto di servizi;2;Organizzazione eventi, pubblicita` e servizi per trasferta;1;Rimborso per viaggio e trasloco;18/07/2018
997;1;0;9.560,40;9.560,40;COMUNE DI PORTOGRUARO; ;COMUNE DI PORTOGRUARO - IMPEGNO E LIQUIDAZIONE COMPARTECIPAZIONE BANDO 2017 PER INTERVENTI REGIONALI PER LA PROMOZIONE DELLA LEGALITA' E DELLA SICUREZZA - DGR 779/2017 - SISTEMA DI VIDEOSORVEGLIANZA;24/07/2018;9691;0;335;2;Spese in conto capitale;3;Contributi agli investimenti;1;Contributi agli investimenti a Amministrazioni pubbliche;2;Contributi agli investimenti a Amministrazioni Locali;3;Contributi agli investimenti a Comuni;24/07/2018
998;1;0;100;100;FINEGIL EDITORIALE SPA  DIVISIONE NORD EST;Z16240C4C2;ABBONAMENTO A LA NUOVA VENEZIA FORMULA RITIRO IN EDICOLA 7 GG. LA SETTIMANA PER UN ANNO;31/07/2018;3755;0;306;1;Spese correnti;3;Acquisto di beni e servizi;1;Acquisto di beni;1;Giornali, riviste e pubblicazioni;2;Pubblicazioni;31/07/2018
999;1;0;49,89;621,46;TELECOM ITALIA S.p.A.;X700D1930B;Fatt.n. 8E00492873  del 06/06/2018 4BIM 2018;01/08/2018;593;1;313;1;Spese correnti;3;Acquisto di beni e servizi;2;Acquisto di servizi;5;Utenze e canoni;1;Telefonia fissa;01/08/2018
999;2;0;61,64;621,46;TELECOM ITALIA S.p.A.;X700D1930B;Fatt.n. 8A00419840  del 06/06/2018 4BIM 2018 LINEA;01/08/2018;593;1;313;1;Spese correnti;3;Acquisto di beni e servizi;2;Acquisto di servizi;5;Utenze e canoni;1;Telefonia fissa;01/08/2018
999;3;0;81,03;621,46;TELECOM ITALIA S.p.A.;X700D1930B;Fatt.n. 8E00490356  del 06/06/2018 4BIM 2018 0421/209535;01/08/2018;593;1;313;1;Spese correnti;3;Acquisto di beni e servizi;2;Acquisto di servizi;5;Utenze e canoni;1;Telefonia fissa;01/08/2018
999;4;0;183,2;621,46;TELECOM ITALIA S.p.A.;X700D1930B;Fatt.n. 8E00491155  del 06/06/2018 4BIM 2018 0421/241265;01/08/2018;593;1;313;1;Spese correnti;3;Acquisto di beni e servizi;2;Acquisto di servizi;5;Utenze e canoni;1;Telefonia fissa;01/08/2018
999;5;0;245,7;621,46;TELECOM ITALIA S.p.A.;X700D1930B;Fatt.n. 8E00490989  del 06/06/2018 4BIM 2018 0421/209534 centralino;01/08/2018;593;1;313;1;Spese correnti;3;Acquisto di beni e servizi;2;Acquisto di servizi;5;Utenze e canoni;1;Telefonia fissa;01/08/2018
1000;1;0;125,63;125,63;TELECOM ITALIA S.p.A.;X700D1930B;Fatt.n. 8E00496197  del 06/06/2018 4BIM 2018 - 0421/209513 SCUOLA;01/08/2018;2975;1;317;1;Spese correnti;3;Acquisto di beni e servizi;2;Acquisto di servizi;5;Utenze e canoni;1;Telefonia fissa;01/08/2018
1001;1;0;160,21;160,21;TELECOM ITALIA S.p.A.;X700D1930B;Fatt.n. 8E00490998  del 06/06/2018 4BIM 2018 0421/209501 SCUOLA MEDIA;01/08/2018;3186;1;318;1;Spese correnti;3;Acquisto di beni e servizi;2;Acquisto di servizi;5;Utenze e canoni;1;Telefonia fissa;01/08/2018
1007;1;0;2.537,60;2.537,60;NICOLETTI MAURO;Z552329083;SALDO Fatt.n. FATTPA 6_18  del 21/05/2018;06/08/2018;9450;2;341;2;Spese in conto capitale;2;Investimenti fissi lordi e acquisto di terreni;1;Beni materiali;9;Beni immobili;2;Fabbricati ad uso commerciale;06/08/2018
1008;1;0;41.250,00;41.250,00;C.D.F. SRL;Z9523AB0AB;SALDO Fatt.n. 34  del 16/07/2018 PROGETTO DEFINITIVO ESECUTIVO LAVORI RIFACIMENTO PORZIONE SOLAIO COPERTURA CENTRO CULTURALE G.STEFANUTO;06/08/2018;9450;2;341;2;Spese in conto capitale;2;Investimenti fissi lordi e acquisto di terreni;1;Beni materiali;9;Beni immobili;2;Fabbricati ad uso commerciale;06/08/2018
1009;1;0;2.250,00;2.250,00;OMESSO NOMINATIVO NEL RISPETTO DELLA NORMATIVA SULLA PROTEZIONE DATI PERSONALI; ;AFFIDO EXTRAFAMILIARE-LIQUIDAZIONE PERIODO APRILE - AGOSTO 2018 CONTRIBUTO ECONOMICO A FAMIGLIA AFFIDATARIA COME DA LINEE GUIDA SULL'AFFIDO 2008;06/08/2018;6145;0;333;1;Spese correnti;4;Trasferimenti correnti;2;Trasferimenti correnti a Famiglie;5;Altri trasferimenti a famiglie;999;Altri trasferimenti a famiglie n.a.c.;06/08/2018
1010;1;0;539;539;GLOBAL POWER SPA;622385037F;Fatt.n. V0/90839 del 01/08/2018 Fattura Energia Elettrica - mese 07/2018 - municipio;06/08/2018;593;1;67;1;Spese correnti;3;Acquisto di beni e servizi;2;Acquisto di servizi;5;Utenze e canoni;4;Energia elettrica;06/08/2018
1011;1;0;42,77;42,77;GLOBAL POWER SPA;622385037F;Fatt.n. V0/90845 del 01/08/2018 Fattura Energia Elettrica - ex distretto mese 07/2018;06/08/2018;593;2;68;1;Spese correnti;3;Acquisto di beni e servizi;2;Acquisto di servizi;5;Utenze e canoni;4;Energia elettrica;06/08/2018
1012;1;0;44,24;44,24;GLOBAL POWER SPA;622385037F;Fatt.n. V0/90849 del 01/08/2018 Fattura Energia Elettrica - mese 07/2018 - Leonardo da Vinci;06/08/2018;593;3;69;1;Spese correnti;3;Acquisto di beni e servizi;2;Acquisto di servizi;5;Utenze e canoni;4;Energia elettrica;06/08/2018
1013;1;0;19,15;200,54;GLOBAL POWER SPA;622385037F;Fatt.n. V0/90853 del 01/08/2018 Fattura Energia Elettrica - mese 07/2018 - Via Marconi n. 24;06/08/2018;593;4;71;1;Spese correnti;3;Acquisto di beni e servizi;2;Acquisto di servizi;5;Utenze e canoni;4;Energia elettrica;06/08/2018
1013;2;0;181,39;200,54;GLOBAL POWER SPA;622385037F;Fatt.n. V0/90852 del 01/08/2018 Fattura Energia Elettrica - mese 07 2018 - via marconi n. 24;06/08/2018;593;4;71;1;Spese correnti;3;Acquisto di beni e servizi;2;Acquisto di servizi;5;Utenze e canoni;4;Energia elettrica;06/08/2018
1014;1;0;38,86;38,86;GLOBAL POWER SPA;622385037F;Fatt.n. V0/90840 del 01/08/2018 Fattura Energia Elettrica - mese 07/2018 - Via Marconi n. 26;06/08/2018;593;6;70;1;Spese correnti;3;Acquisto di beni e servizi;2;Acquisto di servizi;5;Utenze e canoni;4;Energia elettrica;06/08/2018
1015;1;0;36,28;36,28;GLOBAL POWER SPA;622385037F;Fatt.n. V0/90848 del 01/08/2018 Fattura Energia Elettrica - centro culturale mese 07/2018;06/08/2018;595;0;72;1;Spese correnti;3;Acquisto di beni e servizi;2;Acquisto di servizi;5;Utenze e canoni;4;Energia elettrica;06/08/2018
1016;1;0;144,96;144,96;GLOBAL POWER SPA;622385037F;Fatt.n. V0/90847 del 01/08/2018 Fattura Energia Elettrica - Scuola Media e Materna - mese 07/2018;06/08/2018;2803;0;74;1;Spese correnti;3;Acquisto di beni e servizi;2;Acquisto di servizi;5;Utenze e canoni;4;Energia elettrica;06/08/2018
1017;1;0;277,28;277,28;GLOBAL POWER SPA;622385037F;Fatt.n. V0/90846 del 01/08/2018 Fattura Energia Elettrica - mese 07 2018 - scuola elementare;06/08/2018;2975;1;73;1;Spese correnti;3;Acquisto di beni e servizi;2;Acquisto di servizi;5;Utenze e canoni;4;Energia elettrica;06/08/2018
1018;1;0;232,15;232,15;GLOBAL POWER SPA;622385037F;Fatt.n. V0/90847 del 01/08/2018 Fattura Energia Elettrica - Scuola Media e Materna - mese 07/2018;06/08/2018;3186;1;75;1;Spese correnti;3;Acquisto di beni e servizi;2;Acquisto di servizi;5;Utenze e canoni;4;Energia elettrica;06/08/2018
1019;1;0;37,66;37,66;GLOBAL POWER SPA;622385037F;Fatt.n. V0/90841 del 01/08/2018 Fattura Energia Elettrica - mese 07/2018 - cimitero;06/08/2018;5190;0;76;1;Spese correnti;3;Acquisto di beni e servizi;2;Acquisto di servizi;5;Utenze e canoni;4;Energia elettrica;06/08/2018
1020;1;0;61,39;61,39;GLOBAL POWER SPA;622385037F;Fatt.n. V0/90844 del 01/08/2018 Fattura Energia Elettrica - impianto sollevamento mese 07/2018;06/08/2018;5810;0;80;1;Spese correnti;3;Acquisto di beni e servizi;2;Acquisto di servizi;5;Utenze e canoni;4;Energia elettrica;06/08/2018
1021;1;0;215,12;778,37;GLOBAL POWER SPA;622385037F;Fatt.n. V0/90843 del 01/08/2018 Fattura Energia Elettrica - mese 07/2018 - campo bocce;06/08/2018;6496;1;77;1;Spese correnti;3;Acquisto di beni e servizi;2;Acquisto di servizi;5;Utenze e canoni;4;Energia elettrica;06/08/2018
1021;2;0;563,25;778,37;GLOBAL POWER SPA;622385037F;Fatt.n. V0/90842 del 01/08/2018 Fattura Energia Elettrica - mese 07/2018 - impianti sportivi;06/08/2018;6496;1;77;1;Spese correnti;3;Acquisto di beni e servizi;2;Acquisto di servizi;5;Utenze e canoni;4;Energia elettrica;06/08/2018
1022;1;0;19,34;4.338,33;GLOBAL POWER SPA;622385037F;Fatt.n. V0/90851 del 01/08/2018 Fattura Energia Elettrica Via Basedat - mese 07/2018;06/08/2018;7470;0;79;1;Spese correnti;3;Acquisto di beni e servizi;2;Acquisto di servizi;5;Utenze e canoni;4;Energia elettrica;06/08/2018
1022;2;0;153,44;4.338,33;GLOBAL POWER SPA;622385037F;Fatt.n. V0/90850 del 01/08/2018 Fattura Energia Elettrica - mese luglio 2018 - illum pubb - Via Castello;06/08/2018;7470;0;79;1;Spese correnti;3;Acquisto di beni e servizi;2;Acquisto di servizi;5;Utenze e canoni;4;Energia elettrica;06/08/2018
1022;3;0;237,88;4.338,33;GLOBAL POWER SPA;622385037F;Fatt.n. V0/90854 del 01/08/2018 Fattura Energia Elettrica - mese 07/2018 - Via Venezia;06/08/2018;7470;0;79;1;Spese correnti;3;Acquisto di beni e servizi;2;Acquisto di servizi;5;Utenze e canoni;4;Energia elettrica;06/08/2018
1022;4;0;3.927,67;4.338,33;GLOBAL POWER SPA;622385037F;Fatt.n. V0/90855 del 01/08/2018 Fattura Energia Elettrica - mese 07/2018 illuminazione pubblica;06/08/2018;7470;0;79;1;Spese correnti;3;Acquisto di beni e servizi;2;Acquisto di servizi;5;Utenze e canoni;4;Energia elettrica;06/08/2018
1023;1;0;7.711,62;7.711,62;AZIENDA AGRICOLA VIVAI OLIVO TOFFOLI DI ALDO TOFFOLI E;Z4D2299619;SALDO Fatt.n. 10  del 30/06/2018 Prestazione per servizio di sfalcio dei cigli stradali - anno 2018 - 1 e 2 intervento;06/08/2018;7371;0;138;1;Spese correnti;3;Acquisto di beni e servizi;2;Acquisto di servizi;9;Manutenzione ordinaria e riparazioni;12;Manutenzione ordinaria e riparazioni di terreni e beni materiali non prodotti;06/08/2018
1024;1;0;63.277,97;63.277,97;A.S.V.O. SPA AMBIENTE SERVIZI VENEZIA ORIENTALE; ;SALDO Fatt.n. 000024  del 30/04/2018;06/08/2018;5833;0;302;1;Spese correnti;3;Acquisto di beni e servizi;2;Acquisto di servizi;15;Contratti di servizio pubblico;4;Contratti di servizio per la raccolta rifiuti;06/08/2018
1027;1;0;332,1;332,1;TESORIERE COMUNALE; ;VERSAMENTO IVA 2^ TRIMESTRE 2018;09/08/2018;8200;0;348;1;Spese correnti;10;Altre spese correnti;3;Versamenti IVA a debito;1;Versamenti IVA a debito per le gestioni commerciali;1;Versamenti IVA a debito per le gestioni commerciali;09/08/2018
1028;1;0;634,4;634,4;STUDIO BULFONE - COMMERCIALISTI ASSOCIATI;ZAE1235818;SALDO Fatt.n. 000001-2018-PA  del 29/05/2018;10/08/2018;660;0;23;1;Spese correnti;3;Acquisto di beni e servizi;2;Acquisto di servizi;19;Servizi informatici e di telecomunicazioni;7;Servizi di gestione documentale;10/08/2018
1029;1;0;976;976;ACCATRE S.R.L.;Z6C1F9F580;SALDO Fatt.n. 1/180532  del 03/04/2018;10/08/2018;660;0;272;1;Spese correnti;3;Acquisto di beni e servizi;2;Acquisto di servizi;19;Servizi informatici e di telecomunicazioni;2;Assistenza all'utente e formazione;10/08/2018
1030;1;9999999;2.327,54;2.327,54;COLLABORATORI E AMMINISTRATORI DIVERSI; ;STIPENDI MESE DI: AGOSTO 18;20/08/2018;10;0;50;1;Spese correnti;3;Acquisto di beni e servizi;2;Acquisto di servizi;1;Organi e incarichi istituzionali dell'amministrazione;1;Organi istituzionali dell'amministrazione - Indennità;24/08/2018
1059;1;9999999;14,6;14,6;DIPENDENTI COMUNALI DIVERSI; ;STIPENDI MESE DI: AGOSTO 18;20/08/2018;230;0;94;1;Spese correnti;3;Acquisto di beni e servizi;2;Acquisto di servizi;2;Organizzazione eventi, pubblicita` e servizi per trasferta;1;Rimborso per viaggio e trasloco;24/08/2018
1093;1;0;400;400;INTERMEDIA I.B. SRL;Z6D2465F1A;SOSTITUZIONE - ALL RISK IMPIANTI FOTOVOLTAICI ZURICH - N. POLIZZA N. 182B2203;31/08/2018;655;0;332;1;Spese correnti;10;Altre spese correnti;4;Premi di assicurazione;1;Premi di assicurazione contro i danni;1;Premi di assicurazione su beni mobili;31/08/2018
1094;1;0;500;500;INTERMEDIA I.B. SRL;Z711CA9F46;FRANCHIGIA SINISTRO N. 2318/99/001113 CONTROPARTE BAGNARIOL LUIGI - R.C. GENERALE AXA ASSICURAZIONI N. 402626875;31/08/2018;655;0;338;1;Spese correnti;10;Altre spese correnti;4;Premi di assicurazione;1;Premi di assicurazione contro i danni;999;Altri premi di assicurazione contro i danni;31/08/2018
1095;1;0;135,53;135,53;INTERMEDIA I.B. SRL;Z1D1CAA220;LIQUIDAZIONE SPESA PER REGOLAZIONE PREMI ASSICURATIVI ANNO 2018 A FAVORE DI INTERMEDIA I.B. DI SAN DONA' DI PIAVE;31/08/2018;655;0;314;1;Spese correnti;10;Altre spese correnti;4;Premi di assicurazione;1;Premi di assicurazione contro i danni;1;Premi di assicurazione su beni mobili;31/08/2018
1096;1;0;560;560;INTERMEDIA I.B. SRL;ZB71CAA36F;TUTELA GIUDIZIARIA ITAS ASSICURAZIONI - REGOLAZIONE PREMIO - M11571307;31/08/2018;655;0;315;1;Spese correnti;10;Altre spese correnti;4;Premi di assicurazione;1;Premi di assicurazione contro i danni;3;Premi di assicurazione per responsabilità civile verso terzi;31/08/2018
1097;1;0;570;570;INTERMEDIA I.B. SRL;ZF61CAA0CE;INFORTUNI CUMULATIVA ITAS ASSICURAZIONI - REGOLAZIONE PREMI - POLIZZA M11566486;31/08/2018;655;0;316;1;Spese correnti;10;Altre spese correnti;4;Premi di assicurazione;1;Premi di assicurazione contro i danni;3;Premi di assicurazione per responsabilità civile verso terzi;31/08/2018
1098;1;0;39,47;39,47;INTERMEDIA I.B. SRL;Z1D1CAA220;LIBRO MATRICOLA UNIPOL N. 230/118607215 - SALDO;31/08/2018;655;0;314;1;Spese correnti;10;Altre spese correnti;4;Premi di assicurazione;1;Premi di assicurazione contro i danni;3;Premi di assicurazione per responsabilità civile verso terzi;31/08/2018
1099;1;0;549;549;HALLEY VENETO S.R.L.;Z3820BD21E;SALDO Fatt.n. 1/180415  del 10/04/2018;31/08/2018;660;0;351;1;Spese correnti;3;Acquisto di beni e servizi;2;Acquisto di servizi;19;Servizi informatici e di telecomunicazioni;3;Servizi per l'interoperabilità e la cooperazione;31/08/2018
1100;1;0;1.120,00;1.120,00;ACCATRE S.R.L.;ZF61AE2DE2;ACCONTO Fatt.n. 1/180330  del 23/02/2018;31/08/2018;660;0;252;1;Spese correnti;3;Acquisto di beni e servizi;2;Acquisto di servizi;19;Servizi informatici e di telecomunicazioni;7;Servizi di gestione documentale;31/08/2018
1101;1;0;610;610;ACCATRE S.R.L.;ZF61AE2DE2;ACCONTO Fatt.n. 1/180330  del 23/02/2018;31/08/2018;660;0;252;1;Spese correnti;3;Acquisto di beni e servizi;2;Acquisto di servizi;19;Servizi informatici e di telecomunicazioni;7;Servizi di gestione documentale;31/08/2018
1102;1;0;100;100;ACCATRE S.R.L.;ZF61AE2DE2;SALDO Fatt.n. 1/180330  del 23/02/2018;31/08/2018;660;0;252;1;Spese correnti;3;Acquisto di beni e servizi;2;Acquisto di servizi;19;Servizi informatici e di telecomunicazioni;7;Servizi di gestione documentale;31/08/2018
1103;1;0;85,4;85,4;HALLEY VENETO S.R.L.;Z0C1D32025;SALDO Fatt.n. 1/170330  del 26/05/2017;03/09/2018;400;0;95;1;Spese correnti;3;Acquisto di beni e servizi;1;Acquisto di beni;2;Altri beni di consumo;6;Materiale informatico;03/09/2018
1104;1;0;-0,01;1.500,00;ENI SPA DIVISIONE REFINING  & MARKETING;Z6623DA4B0;ACCONTO Fatt.n. 19901636  del 28/06/2018;04/09/2018;620;0;173;1;Spese correnti;3;Acquisto di beni e servizi;1;Acquisto di beni;2;Altri beni di consumo;2;Carburanti, combustibili e lubrificanti;04/09/2018
1104;2;0;1.500,01;1.500,00;ENI SPA DIVISIONE REFINING  & MARKETING;Z6623DA4B0;ACCONTO Fatt.n. 19901636  del 28/06/2018;04/09/2018;620;0;173;1;Spese correnti;3;Acquisto di beni e servizi;1;Acquisto di beni;2;Altri beni di consumo;2;Carburanti, combustibili e lubrificanti;04/09/2018
1105;1;0;1.321,00;1.321,00;ENI SPA DIVISIONE REFINING  & MARKETING;Z6623DA4B0;ACCONTO Fatt.n. 19901636  del 28/06/2018;04/09/2018;6650;0;185;1;Spese correnti;3;Acquisto di beni e servizi;1;Acquisto di beni;2;Altri beni di consumo;2;Carburanti, combustibili e lubrificanti;04/09/2018
1106;1;0;2.105,30;2.105,30;ENI SPA DIVISIONE REFINING  & MARKETING;Z6623DA4B0;SALDO Fatt.n. 19901636  del 28/06/2018;04/09/2018;531;0;186;1;Spese correnti;3;Acquisto di beni e servizi;1;Acquisto di beni;2;Altri beni di consumo;2;Carburanti, combustibili e lubrificanti;04/09/2018
1107;1;0;732;732;SOLUZIONE SRL;ZCA1D5DF5E;SALDO Fatt.n. 0002101039  del 30/03/2018 FATT. IVA SPLIT P.;04/09/2018;470;0;256;1;Spese correnti;3;Acquisto di beni e servizi;1;Acquisto di beni;1;Giornali, riviste e pubblicazioni;2;Pubblicazioni;04/09/2018
1108;1;0;115,31;115,31;A.S.V.O. SPA AMBIENTE SERVIZI VENEZIA ORIENTALE; ;ACCONTO Fatt.n. 000008  del 28/02/2018;04/09/2018;5833;0;111;1;Spese correnti;3;Acquisto di beni e servizi;2;Acquisto di servizi;15;Contratti di servizio pubblico;4;Contratti di servizio per la raccolta rifiuti;04/09/2018
1109;1;0;73.115,00;73.115,00;A.S.V.O. SPA AMBIENTE SERVIZI VENEZIA ORIENTALE; ;SALDO Fatt.n. 000008  del 28/02/2018;04/09/2018;5833;0;239;1;Spese correnti;3;Acquisto di beni e servizi;2;Acquisto di servizi;15;Contratti di servizio pubblico;4;Contratti di servizio per la raccolta rifiuti;04/09/2018
1110;1;0;166,4;166,4;GANZERLA LUCA GIOVANNI;ZC623DB6B8;SALDO Fatt.n. 3E/2018  del 20/06/2018;04/09/2018;3940;0;271;1;Spese correnti;3;Acquisto di beni e servizi;2;Acquisto di servizi;99;Altri servizi;999;Altri servizi diversi n.a.c.;04/09/2018
1111;1;0;166,4;166,4;TORCHIO SILVIA;ZC623DB6B8;SALDO Fatt.n. 2/E  del 04/06/2018;04/09/2018;3940;0;270;1;Spese correnti;3;Acquisto di beni e servizi;2;Acquisto di servizi;99;Altri servizi;999;Altri servizi diversi n.a.c.;04/09/2018
1112;1;0;669;669;INTEGRAA SAS DI GIUSEPPE MIRAGLIA & C.;Z7323904D8;SALDO Fatt.n. FATTPA 113_18  del 04/06/2018;04/09/2018;650;0;174;1;Spese correnti;3;Acquisto di beni e servizi;2;Acquisto di servizi;16;Servizi amministrativi;2;Spese postali;04/09/2018
1113;1;0;598,17;598,17;ELITA SRL;ZE5232F57D;SALDO Fatt.n. 51/PA  del 31/05/2018;04/09/2018;650;0;188;1;Spese correnti;3;Acquisto di beni e servizi;2;Acquisto di servizi;16;Servizi amministrativi;2;Spese postali;04/09/2018
1114;1;0;6.050,00;6.050,00;LORIS VIAGGI DI FONTANEL LORIS;6784409F67;SALDO Fatt.n. PA0142018  del 30/06/2018;04/09/2018;3420;0;333;1;Spese correnti;3;Acquisto di beni e servizi;2;Acquisto di servizi;15;Contratti di servizio pubblico;2;Contratti di servizio di trasporto scolastico;04/09/2018
1115;1;0;-0,01;227;MENARDI S.N.C. di Menardi Tiziano & Oscar;ZC623C2C92;ACCONTO Fatt.n. 24 E  del 06/06/2018 DET. 190 DEL 28/05/18;04/09/2018;6200;0;171;1;Spese correnti;3;Acquisto di beni e servizi;1;Acquisto di beni;2;Altri beni di consumo;999;Altri beni e materiali di consumo n.a.c.;04/09/2018
1115;2;0;227,01;227;MENARDI S.N.C. di Menardi Tiziano & Oscar;ZC623C2C92;SALDO Fatt.n. 24 E  del 06/06/2018 DET. 190 DEL 28/05/18;04/09/2018;6200;0;171;1;Spese correnti;3;Acquisto di beni e servizi;1;Acquisto di beni;2;Altri beni di consumo;999;Altri beni e materiali di consumo n.a.c.;04/09/2018
1116;1;0;854,98;854,98;PIANEZZOLA CLAUDIO;Z092344006;SALDO Fatt.n. 15/01  del 29/06/2018;04/09/2018;7460;1;180;1;Spese correnti;3;Acquisto di beni e servizi;2;Acquisto di servizi;15;Contratti di servizio pubblico;15;Contratti di servizio per l'illuminazione pubblica;04/09/2018
1117;1;0;44,25;44,25;LIVENZA TAGLIAMENTO ACQUE S.P.A.; ;Fatt.n. 001039/2018/E del 09/08/2018 FATTURA CONSUMI ACQUA   UTENZA: 2507 PERIODO II 2018 - Municipio;04/09/2018;593;1;157;1;Spese correnti;3;Acquisto di beni e servizi;2;Acquisto di servizi;5;Utenze e canoni;5;Acqua;04/09/2018
1118;1;0;354,88;354,88;LIVENZA TAGLIAMENTO ACQUE S.P.A.; ;Fatt.n. 001042/2018/E del 09/08/2018 FATTURA CONSUMI ACQUA   UTENZA: 3198 PERIODO II 2018 - Ex Distretto Sanitario;04/09/2018;593;2;162;1;Spese correnti;3;Acquisto di beni e servizi;2;Acquisto di servizi;5;Utenze e canoni;5;Acqua;04/09/2018
1119;1;0;38,94;38,94;LIVENZA TAGLIAMENTO ACQUE S.P.A.; ;Fatt.n. 001045/2018/E del 09/08/2018 FATTURA CONSUMI ACQUA   UTENZA: 68072 PERIODO II 2018 -Magazzini Via Leonardo Da Vinci;04/09/2018;593;3;160;1;Spese correnti;3;Acquisto di beni e servizi;2;Acquisto di servizi;5;Utenze e canoni;5;Acqua;04/09/2018
1120;1;0;30;30;LIVENZA TAGLIAMENTO ACQUE S.P.A.; ;Fatt.n. 001044/2018/E del 09/08/2018 FATTURA CONSUMI ACQUA   UTENZA: 50144 PERIODO II 2018 - Sala Filo D'oro;04/09/2018;593;5;155;1;Spese correnti;3;Acquisto di beni e servizi;2;Acquisto di servizi;5;Utenze e canoni;5;Acqua;04/09/2018
1121;1;0;28,04;28,04;LIVENZA TAGLIAMENTO ACQUE S.P.A.; ;Fatt.n. 001043/2018/E del 09/08/2018 FATTURA CONSUMI ACQUA   UTENZA: 3212 PERIODO II 2018 - Ex Mulino;04/09/2018;593;6;156;1;Spese correnti;3;Acquisto di beni e servizi;2;Acquisto di servizi;5;Utenze e canoni;5;Acqua;04/09/2018
1122;1;0;120,41;120,41;LIVENZA TAGLIAMENTO ACQUE S.P.A.; ;Fatt.n. 001046/2018/E del 09/08/2018 FATTURA CONSUMI ACQUA   UTENZA: 69420 PERIODO II 2018 - Prcheggio Scambiatore;04/09/2018;593;7;161;1;Spese correnti;3;Acquisto di beni e servizi;2;Acquisto di servizi;5;Utenze e canoni;5;Acqua;04/09/2018
1123;1;0;26,1;26,1;LIVENZA TAGLIAMENTO ACQUE S.P.A.; ;Fatt.n. 001040/2018/E del 09/08/2018 FATTURA CONSUMI ACQUA   UTENZA: 2508 PERIODO II 2018 - Pozzetto Via Roma;04/09/2018;593;8;158;1;Spese correnti;3;Acquisto di beni e servizi;2;Acquisto di servizi;5;Utenze e canoni;5;Acqua;04/09/2018
1124;1;0;44,29;44,29;LIVENZA TAGLIAMENTO ACQUE S.P.A.; ;Fatt.n. 001037/2018/E del 09/08/2018 FATTURA CONSUMI ACQUA   UTENZA: 2156 PERIODO II 2018 - Centro Culturale Via Udine;04/09/2018;595;0;353;1;Spese correnti;3;Acquisto di beni e servizi;2;Acquisto di servizi;5;Utenze e canoni;5;Acqua;04/09/2018
1125;1;0;54,37;416,34;LIVENZA TAGLIAMENTO ACQUE S.P.A.; ;Fatt.n. 001048/2018/E del 09/08/2018 FATTURA CONSUMI ACQUA   UTENZA: 54336 PERIODO II 2018 - Scuola Materna e Media;04/09/2018;2803;0;354;1;Spese correnti;3;Acquisto di beni e servizi;2;Acquisto di servizi;5;Utenze e canoni;5;Acqua;04/09/2018
1125;2;0;361,97;416,34;LIVENZA TAGLIAMENTO ACQUE S.P.A.; ;Fatt.n. 001036/2018/E del 09/08/2018 FATTURA CONSUMI ACQUA   UTENZA: 2085 PERIODO II 2018 - Scuola Materna e Media;04/09/2018;2803;0;354;1;Spese correnti;3;Acquisto di beni e servizi;2;Acquisto di servizi;5;Utenze e canoni;5;Acqua;04/09/2018
1126;1;0;5,13;615,22;LIVENZA TAGLIAMENTO ACQUE S.P.A.; ;Fatt.n. 001050/2018/E del 09/08/2018 FATTURA CONSUMI ACQUA   UTENZA: 54337 PERIODO II 2018 - Scuola Elementare;04/09/2018;2975;1;355;1;Spese correnti;3;Acquisto di beni e servizi;2;Acquisto di servizi;5;Utenze e canoni;5;Acqua;04/09/2018
1126;2;0;610,09;615,22;LIVENZA TAGLIAMENTO ACQUE S.P.A.; ;Fatt.n. 001035/2018/E del 09/08/2018 FATTURA CONSUMI ACQUA   UTENZA: 1918 PERIODO II 2018 - Scuola Elementare;04/09/2018;2975;1;355;1;Spese correnti;3;Acquisto di beni e servizi;2;Acquisto di servizi;5;Utenze e canoni;5;Acqua;04/09/2018
1127;1;0;3,19;140,01;LIVENZA TAGLIAMENTO ACQUE S.P.A.; ;Fatt.n. 001051/2018/E del 09/08/2018 FATTURA CONSUMI ACQUA   UTENZA: 65150 PERIODO II 2018 - Ecocentro;04/09/2018;5810;0;359;1;Spese correnti;3;Acquisto di beni e servizi;2;Acquisto di servizi;5;Utenze e canoni;5;Acqua;04/09/2018
1127;2;0;136,82;140,01;LIVENZA TAGLIAMENTO ACQUE S.P.A.; ;Fatt.n. 001049/2018/E del 09/08/2018 FATTURA CONSUMI ACQUA   UTENZA: 65149 PERIODO II 2018 - Ecocentro;04/09/2018;5810;0;359;1;Spese correnti;3;Acquisto di beni e servizi;2;Acquisto di servizi;5;Utenze e canoni;5;Acqua;04/09/2018
1128;1;0;187,17;187,17;LIVENZA TAGLIAMENTO ACQUE S.P.A.; ;Fatt.n. 001041/2018/E del 09/08/2018 FATTURA CONSUMI ACQUA   UTENZA: 2977 PERIODO II 2018 - Impianti Sportivi;04/09/2018;6496;1;358;1;Spese correnti;3;Acquisto di beni e servizi;2;Acquisto di servizi;5;Utenze e canoni;5;Acqua;04/09/2018
1129;1;0;53,53;164,53;LIVENZA TAGLIAMENTO ACQUE S.P.A.; ;Fatt.n. 001047/2018/E  del 09/08/2018 FATTURA CONSUMI ACQUA   UTENZA: 91087 PERIODO II 2018 - Via Marconi, 24/2;04/09/2018;593;4;159;1;Spese correnti;3;Acquisto di beni e servizi;2;Acquisto di servizi;5;Utenze e canoni;5;Acqua;04/09/2018
1129;2;0;111;164,53;LIVENZA TAGLIAMENTO ACQUE S.P.A.; ;Fatt.n. 100003/2018/O  del 30/03/2018 FATTURA CONSUMI ACQUA   UTENZA: 91087 - Deposito cauzionale nuova utenza Via Marconi;04/09/2018;593;4;159;1;Spese correnti;3;Acquisto di beni e servizi;2;Acquisto di servizi;5;Utenze e canoni;5;Acqua;04/09/2018
1130;1;0;286,56;286,56;LIVENZA TAGLIAMENTO ACQUE S.P.A.; ;Fatt.n. 001038/2018/E del 09/08/2018 FATTURA CONSUMI ACQUA   UTENZA: 2503 PERIODO II 2018 - Cimitero;04/09/2018;5195;0;357;1;Spese correnti;3;Acquisto di beni e servizi;2;Acquisto di servizi;5;Utenze e canoni;5;Acqua;04/09/2018
1131;1;0;87,08;666,77;LIVENZA TAGLIAMENTO ACQUE S.P.A.; ;Fatt.n. 001048/2018/E del 09/08/2018 FATTURA CONSUMI ACQUA   UTENZA: 54336 PERIODO II 2018 - Scuola Materna e Media;04/09/2018;3186;1;356;1;Spese correnti;3;Acquisto di beni e servizi;2;Acquisto di servizi;5;Utenze e canoni;5;Acqua;04/09/2018
1131;2;0;579,69;666,77;LIVENZA TAGLIAMENTO ACQUE S.P.A.; ;Fatt.n. 001036/2018/E del 09/08/2018 FATTURA CONSUMI ACQUA   UTENZA: 2085 PERIODO II 2018 - Scuola Materna e Media;04/09/2018;3186;1;356;1;Spese correnti;3;Acquisto di beni e servizi;2;Acquisto di servizi;5;Utenze e canoni;5;Acqua;04/09/2018
1133;1;0;583,47;583,47;GLOBAL POWER SPA;622385037F;Fatt.n. V0/77814 del 02/07/2018 Fattura Energia Elettrica - Mese 06/2018 - Municipio;05/09/2018;593;1;67;1;Spese correnti;3;Acquisto di beni e servizi;2;Acquisto di servizi;5;Utenze e canoni;4;Energia elettrica;05/09/2018
1134;1;0;59,5;59,5;GLOBAL POWER SPA;622385037F;Fatt.n. V0/77820 del 02/07/2018 Fattura Energia Elettrica - Mese 06/2018 - Via Roma 80;05/09/2018;593;2;68;1;Spese correnti;3;Acquisto di beni e servizi;2;Acquisto di servizi;5;Utenze e canoni;4;Energia elettrica;05/09/2018
1135;1;0;72,46;72,46;GLOBAL POWER SPA;622385037F;Fatt.n. V0/77824 del 02/07/2018 Fattura Energia Elettrica - Mese 06/2018 - Via L. Da Vinci;05/09/2018;593;3;69;1;Spese correnti;3;Acquisto di beni e servizi;2;Acquisto di servizi;5;Utenze e canoni;4;Energia elettrica;05/09/2018
1136;1;0;34,57;120,21;GLOBAL POWER SPA;622385037F;Fatt.n. V0/77828 del 02/07/2018 Fattura Energia Elettrica - Mese 06/2018 - Via Marconi, 24;05/09/2018;593;4;71;1;Spese correnti;3;Acquisto di beni e servizi;2;Acquisto di servizi;5;Utenze e canoni;4;Energia elettrica;05/09/2018
1136;2;0;85,64;120,21;GLOBAL POWER SPA;622385037F;Fatt.n. V0/77827 del 02/07/2018 Fattura Energia Elettrica - Mese 06/2018 - Via Marconi, 24;05/09/2018;593;4;71;1;Spese correnti;3;Acquisto di beni e servizi;2;Acquisto di servizi;5;Utenze e canoni;4;Energia elettrica;05/09/2018
1137;1;0;49,28;49,28;GLOBAL POWER SPA;622385037F;Fatt.n. V0/77815 del 02/07/2018 Fattura Energia Elettrica - Mese 06/2018 - Via Marconi, 26;05/09/2018;593;6;70;1;Spese correnti;3;Acquisto di beni e servizi;2;Acquisto di servizi;5;Utenze e canoni;4;Energia elettrica;05/09/2018
1138;1;0;34,24;34,24;GLOBAL POWER SPA;622385037F;Fatt.n. V0/77823 del 02/07/2018 Fattura Energia Elettrica - Mese 06/2018 - Centro Culturale;05/09/2018;595;0;72;1;Spese correnti;3;Acquisto di beni e servizi;2;Acquisto di servizi;5;Utenze e canoni;4;Energia elettrica;05/09/2018
1139;1;0;187,06;187,06;GLOBAL POWER SPA;622385037F;Fatt.n. V0/77822 del 02/07/2018 Fattura Energia Elettrica - Mese 06/2018 - Scuola Materna e Media;05/09/2018;2803;0;74;1;Spese correnti;3;Acquisto di beni e servizi;2;Acquisto di servizi;5;Utenze e canoni;4;Energia elettrica;05/09/2018
1140;1;0;321,16;321,16;GLOBAL POWER SPA;622385037F;Fatt.n. V0/77821 del 02/07/2018 Fattura Energia Elettrica Mese 06/2018 - Scuola Elementare;05/09/2018;2975;1;73;1;Spese correnti;3;Acquisto di beni e servizi;2;Acquisto di servizi;5;Utenze e canoni;4;Energia elettrica;05/09/2018
1141;1;0;299,56;299,56;GLOBAL POWER SPA;622385037F;Fatt.n. V0/77822 del 02/07/2018 Fattura Energia Elettrica - Mese 06/2018 - Scuola Materna e Media;05/09/2018;3186;1;75;1;Spese correnti;3;Acquisto di beni e servizi;2;Acquisto di servizi;5;Utenze e canoni;4;Energia elettrica;05/09/2018
1142;1;0;33,86;33,86;GLOBAL POWER SPA;622385037F;Fatt.n. V0/77816 del 02/07/2018 Fattura Energia Elettrica - Mese 06/2018 - Cimitero;05/09/2018;5190;0;76;1;Spese correnti;3;Acquisto di beni e servizi;2;Acquisto di servizi;5;Utenze e canoni;4;Energia elettrica;05/09/2018
1143;1;0;84,31;84,31;GLOBAL POWER SPA;622385037F;Fatt.n. V0/77819 del 02/07/2018 Fattura Energia Elettrica - Mese 06/2018 - Impianto sollevamento smaltimento rifiuti;05/09/2018;5810;0;80;1;Spese correnti;3;Acquisto di beni e servizi;2;Acquisto di servizi;5;Utenze e canoni;4;Energia elettrica;05/09/2018
1144;1;0;194,71;829,89;GLOBAL POWER SPA;622385037F;Fatt.n. V0/77818 del 02/07/2018 Fattura Energia Elettrica - Mese 06/2018 - Campo bocce;05/09/2018;6496;1;77;1;Spese correnti;3;Acquisto di beni e servizi;2;Acquisto di servizi;5;Utenze e canoni;4;Energia elettrica;05/09/2018
1144;2;0;635,18;829,89;GLOBAL POWER SPA;622385037F;Fatt.n. V0/77817 del 02/07/2018 Fattura Energia Elettrica - Mese 06/2018 - Palazzetto;05/09/2018;6496;1;77;1;Spese correnti;3;Acquisto di beni e servizi;2;Acquisto di servizi;5;Utenze e canoni;4;Energia elettrica;05/09/2018
1145;1;0;34,75;4.021,53;GLOBAL POWER SPA;622385037F;Fatt.n. V0/77826 del 02/07/2018 Fattura Energia Elettrica - Mese 06/2018 - Via Basedat;05/09/2018;7470;0;79;1;Spese correnti;3;Acquisto di beni e servizi;2;Acquisto di servizi;5;Utenze e canoni;4;Energia elettrica;05/09/2018
1145;2;0;150,11;4.021,53;GLOBAL POWER SPA;622385037F;Fatt.n. V0/77825 del 02/07/2018 Fattura Energia Elettrica - Mese 06/2018 - Via Castello;05/09/2018;7470;0;79;1;Spese correnti;3;Acquisto di beni e servizi;2;Acquisto di servizi;5;Utenze e canoni;4;Energia elettrica;05/09/2018
1145;3;0;231,91;4.021,53;GLOBAL POWER SPA;622385037F;Fatt.n. V0/77829 del 02/07/2018 Fattura Energia Elettrica - Mese 06/2018 - Via Venezia;05/09/2018;7470;0;79;1;Spese correnti;3;Acquisto di beni e servizi;2;Acquisto di servizi;5;Utenze e canoni;4;Energia elettrica;05/09/2018
1145;4;0;3.604,76;4.021,53;GLOBAL POWER SPA;622385037F;Fatt.n. V0/77830 del 02/07/2018 Fattura Energia Elettrica - Mese 06/2018 - Illuminazione pubblica;05/09/2018;7470;0;79;1;Spese correnti;3;Acquisto di beni e servizi;2;Acquisto di servizi;5;Utenze e canoni;4;Energia elettrica;05/09/2018
1146;1;0;40,76;40,76;LIVENZA TAGLIAMENTO ACQUE S.P.A.; ;Fatt.n. 000455/2018/E del 06/04/2018 FATTURA CONSUMI ACQUA   UTENZA: 2507 PERIODO I 2018 - Municipio;05/09/2018;593;1;157;1;Spese correnti;3;Acquisto di beni e servizi;2;Acquisto di servizi;5;Utenze e canoni;5;Acqua;05/09/2018
1147;1;0;301,1;301,1;LIVENZA TAGLIAMENTO ACQUE S.P.A.; ;Fatt.n. 000458/2018/E del 06/04/2018 FATTURA CONSUMI ACQUA   UTENZA: 3198 PERIODO I 2018 - Ex Distretto Sanitario;05/09/2018;593;2;162;1;Spese correnti;3;Acquisto di beni e servizi;2;Acquisto di servizi;5;Utenze e canoni;5;Acqua;05/09/2018
1148;1;0;25,33;25,33;LIVENZA TAGLIAMENTO ACQUE S.P.A.; ;Fatt.n. 000461/2018/E del 06/04/2018 FATTURA CONSUMI ACQUA   UTENZA: 68072 PERIODO I 2018 - Via Leonardo Da Vinci;05/09/2018;593;3;160;1;Spese correnti;3;Acquisto di beni e servizi;2;Acquisto di servizi;5;Utenze e canoni;5;Acqua;05/09/2018
1149;1;0;66,16;66,16;LIVENZA TAGLIAMENTO ACQUE S.P.A.; ;Fatt.n. 000465/2018/E del 06/04/2018 FATTURA CONSUMI ACQUA   UTENZA: 91087 PERIODO I 2018 - Ex Mulino;05/09/2018;593;4;159;1;Spese correnti;3;Acquisto di beni e servizi;2;Acquisto di servizi;5;Utenze e canoni;5;Acqua;05/09/2018
1150;1;0;24,61;24,61;LIVENZA TAGLIAMENTO ACQUE S.P.A.; ;Fatt.n. 000460/2018/E del 06/04/2018 FATTURA CONSUMI ACQUA   UTENZA: 50144 PERIODO I 2018;05/09/2018;593;5;155;1;Spese correnti;3;Acquisto di beni e servizi;2;Acquisto di servizi;5;Utenze e canoni;5;Acqua;05/09/2018
1151;1;0;24,61;24,61;LIVENZA TAGLIAMENTO ACQUE S.P.A.; ;Fatt.n. 000459/2018/E del 06/04/2018 FATTURA CONSUMI ACQUA   UTENZA: 3212 PERIODO I 2018 - Ex Mulino;05/09/2018;593;6;156;1;Spese correnti;3;Acquisto di beni e servizi;2;Acquisto di servizi;5;Utenze e canoni;5;Acqua;05/09/2018
1152;1;0;22,13;22,13;LIVENZA TAGLIAMENTO ACQUE S.P.A.; ;Fatt.n. 000462/2018/E del 06/04/2018 FATTURA CONSUMI ACQUA   UTENZA: 69420 PERIODO I 2018 - Parcheggio Via Castello;05/09/2018;593;7;161;1;Spese correnti;3;Acquisto di beni e servizi;2;Acquisto di servizi;5;Utenze e canoni;5;Acqua;05/09/2018
1153;1;0;22,67;22,67;LIVENZA TAGLIAMENTO ACQUE S.P.A.; ;Fatt.n. 000456/2018/E del 06/04/2018 FATTURA CONSUMI ACQUA   UTENZA: 2508 PERIODO I 2018 - Pozzetto Via Roma;05/09/2018;593;8;158;1;Spese correnti;3;Acquisto di beni e servizi;2;Acquisto di servizi;5;Utenze e canoni;5;Acqua;05/09/2018
1154;1;0;29,04;29,04;LIVENZA TAGLIAMENTO ACQUE S.P.A.; ;Fatt.n. 000453/2018/E del 06/04/2018 FATTURA CONSUMI ACQUA   UTENZA: 2156 PERIODO I 2018 - Centro Culturale Via Udine;05/09/2018;595;0;353;1;Spese correnti;3;Acquisto di beni e servizi;2;Acquisto di servizi;5;Utenze e canoni;5;Acqua;05/09/2018
1155;1;0;49,59;374,04;LIVENZA TAGLIAMENTO ACQUE S.P.A.; ;Fatt.n. 000466/2018/E del 06/04/2018 FATTURA CONSUMI ACQUA   UTENZA: 54336 PERIODO I 2018 - Scuola Materna e Medie;05/09/2018;2803;0;354;1;Spese correnti;3;Acquisto di beni e servizi;2;Acquisto di servizi;5;Utenze e canoni;5;Acqua;05/09/2018
1155;2;0;324,45;374,04;LIVENZA TAGLIAMENTO ACQUE S.P.A.; ;Fatt.n. 000452/2018/E del 06/04/2018 FATTURA CONSUMI ACQUA   UTENZA: 2085 PERIODO I 2018 - Scuola Materna e Medie;05/09/2018;2803;0;354;1;Spese correnti;3;Acquisto di beni e servizi;2;Acquisto di servizi;5;Utenze e canoni;5;Acqua;05/09/2018
1156;1;0;3,19;639,79;LIVENZA TAGLIAMENTO ACQUE S.P.A.; ;Fatt.n. 000468/2018/E del 06/04/2018 FATTURA CONSUMI ACQUA   UTENZA: 54337 PERIODO I 2018 - Scuola Elementare;05/09/2018;2975;1;355;1;Spese correnti;3;Acquisto di beni e servizi;2;Acquisto di servizi;5;Utenze e canoni;5;Acqua;05/09/2018
1156;2;0;636,6;639,79;LIVENZA TAGLIAMENTO ACQUE S.P.A.; ;Fatt.n. 000451/2018/E del 06/04/2018 FATTURA CONSUMI ACQUA   UTENZA: 1918 PERIODO I 2018 - Scuola Elementare;05/09/2018;2975;1;355;1;Spese correnti;3;Acquisto di beni e servizi;2;Acquisto di servizi;5;Utenze e canoni;5;Acqua;05/09/2018
1157;1;0;79,42;599,02;LIVENZA TAGLIAMENTO ACQUE S.P.A.; ;Fatt.n. 000466/2018/E del 06/04/2018 FATTURA CONSUMI ACQUA   UTENZA: 54336 PERIODO I 2018 - Scuola Materna e Medie;05/09/2018;3186;1;356;1;Spese correnti;3;Acquisto di beni e servizi;2;Acquisto di servizi;5;Utenze e canoni;5;Acqua;05/09/2018
1157;2;0;519,6;599,02;LIVENZA TAGLIAMENTO ACQUE S.P.A.; ;Fatt.n. 000452/2018/E del 06/04/2018 FATTURA CONSUMI ACQUA   UTENZA: 2085 PERIODO I 2018 - Scuola Materna e Medie;05/09/2018;3186;1;356;1;Spese correnti;3;Acquisto di beni e servizi;2;Acquisto di servizi;5;Utenze e canoni;5;Acqua;05/09/2018
1158;1;0;85,46;85,46;LIVENZA TAGLIAMENTO ACQUE S.P.A.; ;Fatt.n. 000454/2018/E del 06/04/2018 FATTURA CONSUMI ACQUA   UTENZA: 2503 PERIODO I 2018 - Cimitero;05/09/2018;5195;0;357;1;Spese correnti;3;Acquisto di beni e servizi;2;Acquisto di servizi;5;Utenze e canoni;5;Acqua;05/09/2018
1159;1;0;3,19;118,01;LIVENZA TAGLIAMENTO ACQUE S.P.A.; ;Fatt.n. 000469/2018/E del 06/04/2018 FATTURA CONSUMI ACQUA   UTENZA: 65150 PERIODO I 2018 - Ecocentro;05/09/2018;5810;0;359;1;Spese correnti;3;Acquisto di beni e servizi;2;Acquisto di servizi;5;Utenze e canoni;5;Acqua;05/09/2018
1159;2;0;114,82;118,01;LIVENZA TAGLIAMENTO ACQUE S.P.A.; ;Fatt.n. 000467/2018/E del 06/04/2018 FATTURA CONSUMI ACQUA   UTENZA: 65149 PERIODO I 2018 - Ecocentro;05/09/2018;5810;0;359;1;Spese correnti;3;Acquisto di beni e servizi;2;Acquisto di servizi;5;Utenze e canoni;5;Acqua;05/09/2018
1160;1;0;264,57;264,57;LIVENZA TAGLIAMENTO ACQUE S.P.A.; ;Fatt.n. 000457/2018/E del 06/04/2018 FATTURA CONSUMI ACQUA   UTENZA: 2977 PERIODO I 2018 - Impianti sportivi;05/09/2018;6496;1;358;1;Spese correnti;3;Acquisto di beni e servizi;2;Acquisto di servizi;5;Utenze e canoni;5;Acqua;05/09/2018
1161;1;0;12,99;199,74;ENEL ENERGIA SPA - SOC. CON UNICO SOCIO;6685388CB1;SALDO Fatt.n. 004811169402  del 08/07/2018 GAS - SEDE PARCO;06/09/2018;593;4;360;1;Spese correnti;3;Acquisto di beni e servizi;2;Acquisto di servizi;5;Utenze e canoni;6;Gas;06/09/2018
1161;2;0;186,75;199,74;ENEL ENERGIA SPA - SOC. CON UNICO SOCIO;6685388CB1;SALDO Fatt.n. 004810781250  del 10/05/2018 GAS SEDE PARCO -;06/09/2018;593;4;360;1;Spese correnti;3;Acquisto di beni e servizi;2;Acquisto di servizi;5;Utenze e canoni;6;Gas;06/09/2018
1164;1;0;113,2;113,2;ENEL ENERGIA SPA - SOC. CON UNICO SOCIO; ;Fatt.n. 004810742398  del 07/05/2018 Mese 05/18 - Via Roma e Via Trieste 2/A;06/09/2018;593;2;90;1;Spese correnti;3;Acquisto di beni e servizi;2;Acquisto di servizi;5;Utenze e canoni;6;Gas;06/09/2018
1165;1;0;31,64;31,64;ENEL ENERGIA SPA - SOC. CON UNICO SOCIO; ;Fatt.n. 004810700947  del 07/05/2018 Mese 05/2018 - Via Marconi 26;06/09/2018;593;6;89;1;Spese correnti;3;Acquisto di beni e servizi;2;Acquisto di servizi;5;Utenze e canoni;6;Gas;06/09/2018
1166;1;0;47,63;524,6;TELECOM ITALIA S.p.A.;X700D1930B;Fatt.n. 8E00675842 del 06/08/2018 TIM SPA - 5BIM 2018 - FAX 0421/241030;06/09/2018;593;1;313;1;Spese correnti;3;Acquisto di beni e servizi;2;Acquisto di servizi;5;Utenze e canoni;1;Telefonia fissa;06/09/2018
1166;2;0;56,12;524,6;TELECOM ITALIA S.p.A.;X700D1930B;Fatt.n. 8A00573365 del 06/08/2018 TIM SPA - 5BIM 2018 - CENTRALINO 016113558959;06/09/2018;593;1;313;1;Spese correnti;3;Acquisto di beni e servizi;2;Acquisto di servizi;5;Utenze e canoni;1;Telefonia fissa;06/09/2018
1166;3;0;74,59;524,6;TELECOM ITALIA S.p.A.;X700D1930B;Fatt.n. 8E00671799 del 06/08/2018 TIM SPA - 5BIM 2018 - CENTRALINO 0421/209535;06/09/2018;593;1;313;1;Spese correnti;3;Acquisto di beni e servizi;2;Acquisto di servizi;5;Utenze e canoni;1;Telefonia fissa;06/09/2018
1166;4;0;166,2;524,6;TELECOM ITALIA S.p.A.;X700D1930B;Fatt.n. 8E00670841 del 06/08/2018 TIM SPA - 5BIM 2018 - CENTRALINO 0421/241265;06/09/2018;593;1;313;1;Spese correnti;3;Acquisto di beni e servizi;2;Acquisto di servizi;5;Utenze e canoni;1;Telefonia fissa;06/09/2018
1166;5;0;180,06;524,6;TELECOM ITALIA S.p.A.;X700D1930B;Fatt.n. 8E00674173 del 06/08/2018 TIM SPA - 5BIM 2018 - CENTRALINO 0421/209534;06/09/2018;593;1;313;1;Spese correnti;3;Acquisto di beni e servizi;2;Acquisto di servizi;5;Utenze e canoni;1;Telefonia fissa;06/09/2018
1167;1;0;114,25;114,25;TELECOM ITALIA S.p.A.;X700D1930B;Fatt.n. 8E00673901 del 06/08/2018 TIM SPA - 5BIM 2018 - SCUOLA ELEMENTARE 0421/209513;06/09/2018;2975;1;317;1;Spese correnti;3;Acquisto di beni e servizi;2;Acquisto di servizi;5;Utenze e canoni;1;Telefonia fissa;06/09/2018
1168;1;0;107,77;107,77;TELECOM ITALIA S.p.A.;X700D1930B;Fatt.n. 8E00671825 del 06/08/2018 TIM SPA - 5BIM 2018 - SCUOLA MEDIA 0421/209501;06/09/2018;3186;1;318;1;Spese correnti;3;Acquisto di beni e servizi;2;Acquisto di servizi;5;Utenze e canoni;1;Telefonia fissa;06/09/2018
1171;1;0;946,98;946,98;GLOBAL POWER SPA;622385037F;Fatt.n. V0/104136 del 04/09/2018 Fattura Energia Elettrica - Mese 08/18 - Municipio;07/09/2018;593;1;67;1;Spese correnti;3;Acquisto di beni e servizi;2;Acquisto di servizi;5;Utenze e canoni;4;Energia elettrica;07/09/2018
1172;1;0;68,71;68,71;GLOBAL POWER SPA;622385037F;Fatt.n. V0/104142 del 04/09/2018 Fattura Energia Elettrica - Mese 08/18 - Ex distretto;07/09/2018;593;2;68;1;Spese correnti;3;Acquisto di beni e servizi;2;Acquisto di servizi;5;Utenze e canoni;4;Energia elettrica;07/09/2018
1173;1;0;79,17;79,17;GLOBAL POWER SPA;622385037F;Fatt.n. V0/104146 del 04/09/2018 Fattura Energia Elettrica - Mese 08/18 - Via L. Da Vinci;07/09/2018;593;3;69;1;Spese correnti;3;Acquisto di beni e servizi;2;Acquisto di servizi;5;Utenze e canoni;4;Energia elettrica;07/09/2018
1174;1;0;43,21;222,18;GLOBAL POWER SPA;622385037F;Fatt.n. V0/104150 del 04/09/2018 Fattura Energia Elettrica - Mese 08/218 - Via Marconi;07/09/2018;593;4;71;1;Spese correnti;3;Acquisto di beni e servizi;2;Acquisto di servizi;5;Utenze e canoni;4;Energia elettrica;07/09/2018
1174;2;0;178,97;222,18;GLOBAL POWER SPA;622385037F;Fatt.n. V0/104149 del 04/09/2018 Fattura Energia Elettrica - Mese 08/18 - Filo d'oro;07/09/2018;593;4;71;1;Spese correnti;3;Acquisto di beni e servizi;2;Acquisto di servizi;5;Utenze e canoni;4;Energia elettrica;07/09/2018
1175;1;0;69,71;69,71;GLOBAL POWER SPA;622385037F;Fatt.n. V0/104137 del 04/09/2018 Fattura Energia Elettrica - Mese 08/18 - Via Marconi 26;07/09/2018;593;6;70;1;Spese correnti;3;Acquisto di beni e servizi;2;Acquisto di servizi;5;Utenze e canoni;4;Energia elettrica;07/09/2018
1176;1;0;49,51;49,51;GLOBAL POWER SPA;622385037F;Fatt.n. V0/104145 del 04/09/2018 Fattura Energia Elettrica - Mese 08/18 - Centro culturale via Udine;07/09/2018;595;0;72;1;Spese correnti;3;Acquisto di beni e servizi;2;Acquisto di servizi;5;Utenze e canoni;4;Energia elettrica;07/09/2018
1177;1;0;88;88;GLOBAL POWER SPA;622385037F;Fatt.n. V0/104144 del 04/09/2018 Fattura Energia Elettrica - Mese 08/18 - scuola media e materna;07/09/2018;2803;0;74;1;Spese correnti;3;Acquisto di beni e servizi;2;Acquisto di servizi;5;Utenze e canoni;4;Energia elettrica;07/09/2018
1178;1;0;192,57;192,57;GLOBAL POWER SPA;622385037F;Fatt.n. V0/104143 del 04/09/2018 Fattura Energia Elettrica - Mese 08/18 - Scuola elementare;07/09/2018;2975;1;73;1;Spese correnti;3;Acquisto di beni e servizi;2;Acquisto di servizi;5;Utenze e canoni;4;Energia elettrica;07/09/2018
1179;1;0;140,95;140,95;GLOBAL POWER SPA;622385037F;Fatt.n. V0/104144 del 04/09/2018 Fattura Energia Elettrica - Mese 08/18 - scuola media e materna;07/09/2018;3186;1;75;1;Spese correnti;3;Acquisto di beni e servizi;2;Acquisto di servizi;5;Utenze e canoni;4;Energia elettrica;07/09/2018
1180;1;0;57,51;57,51;GLOBAL POWER SPA;622385037F;Fatt.n. V0/104138 del 04/09/2018 Fattura Energia Elettrica - mese 08/18 - Illuminazione votiva;07/09/2018;5190;0;76;1;Spese correnti;3;Acquisto di beni e servizi;2;Acquisto di servizi;5;Utenze e canoni;4;Energia elettrica;07/09/2018
1181;1;0;85,12;85,12;GLOBAL POWER SPA;622385037F;Fatt.n. V0/104141 del 04/09/2018 Fattura Energia Elettrica - Mese 08/18 - Sollevamento rifiuti;07/09/2018;5810;0;80;1;Spese correnti;3;Acquisto di beni e servizi;2;Acquisto di servizi;5;Utenze e canoni;4;Energia elettrica;07/09/2018
1182;1;0;642,42;642,42;GLOBAL POWER SPA;622385037F;Fatt.n. V0/104139 del 04/09/2018 Fattura Energia Elettrica - Mese 0872018 - Palazzetto Sport;07/09/2018;6496;1;77;1;Spese correnti;3;Acquisto di beni e servizi;2;Acquisto di servizi;5;Utenze e canoni;4;Energia elettrica;07/09/2018
1183;1;0;145,09;145,09;GLOBAL POWER SPA;622385037F;Fatt.n. V0/104140 del 04/09/2018 Fattura Energia Elettrica - Mese 08/18 - Bocciofila;07/09/2018;6496;2;78;1;Spese correnti;3;Acquisto di beni e servizi;2;Acquisto di servizi;5;Utenze e canoni;4;Energia elettrica;07/09/2018
1184;1;0;43,41;5.235,77;GLOBAL POWER SPA;622385037F;Fatt.n. V0/104148 del 04/09/2018 Fattura Energia Elettrica - Mese 08/18 - Via Basedat;07/09/2018;7470;0;79;1;Spese correnti;3;Acquisto di beni e servizi;2;Acquisto di servizi;5;Utenze e canoni;4;Energia elettrica;07/09/2018
1184;2;0;103,52;5.235,77;GLOBAL POWER SPA;622385037F;Fatt.n. V0/104147 del 04/09/2018 Fattura Energia Elettrica - Mese 08/18 - Via Castello;07/09/2018;7470;0;79;1;Spese correnti;3;Acquisto di beni e servizi;2;Acquisto di servizi;5;Utenze e canoni;4;Energia elettrica;07/09/2018
1184;3;0;296,5;5.235,77;GLOBAL POWER SPA;622385037F;Fatt.n. V0/104151 del 04/09/2018 Fattura Energia Elettrica - Mese 08/18 - Via Venezia;07/09/2018;7470;0;79;1;Spese correnti;3;Acquisto di beni e servizi;2;Acquisto di servizi;5;Utenze e canoni;4;Energia elettrica;07/09/2018
1184;4;0;4.792,34;5.235,77;GLOBAL POWER SPA;622385037F;Fatt.n. V0/104152 del 04/09/2018 Fattura Energia Elettrica - Mese 08/18 - Illuminazione pubblica;07/09/2018;7470;0;79;1;Spese correnti;3;Acquisto di beni e servizi;2;Acquisto di servizi;5;Utenze e canoni;4;Energia elettrica;07/09/2018
1185;1;0;49,79;49,79;ENEL ENERGIA SPA - SOC. CON UNICO SOCIO;622385037F;SALDO Fatt.n. 277901505085223  del 10/08/2018 SERVIZIO ELETTRICO V. MARCONI 25 - BIMESTRE LUGLIO - AGOSTO 2018;07/09/2018;593;5;87;1;Spese correnti;3;Acquisto di beni e servizi;2;Acquisto di servizi;5;Utenze e canoni;4;Energia elettrica;07/09/2018
1186;1;0;352,59;352,59;COMUNE DI CINTO CAOMAGGIORE; ;MINISTERO INTERNO - MESE DI MARZO 2018;11/09/2018;1210;0;361;1;Spese correnti;4;Trasferimenti correnti;1;Trasferimenti correnti a Amministrazioni Pubbliche;1;Trasferimenti correnti a Amministrazioni Centrali;1;Trasferimenti correnti a Ministeri;11/09/2018
1187;1;0;2.327,54;2.327,54;COLLABORATORI E AMMINISTRATORI DIVERSI; ;STIPENDI MESE DI: SETTEMBRE 18;13/09/2018;10;0;50;1;Spese correnti;3;Acquisto di beni e servizi;2;Acquisto di servizi;1;Organi e incarichi istituzionali dell'amministrazione;1;Organi istituzionali dell'amministrazione - Indennità;13/09/2018
1189;1;0;37,3;37,3;COLLABORATORI E AMMINISTRATORI DIVERSI; ;STIPENDI MESE DI: SETTEMBRE 18;13/09/2018;55;0;92;1;Spese correnti;3;Acquisto di beni e servizi;2;Acquisto di servizi;2;Organizzazione eventi, pubblicita` e servizi per trasferta;2;Indennità di missione e di trasferta;13/09/2018
1250;1;0;3.083,16;3.083,16;VITELLA ALBERTO;0;SALDO Fatt.n. 00001/PA  del 11/06/2018;18/09/2018;50;0;342;1;Spese correnti;3;Acquisto di beni e servizi;2;Acquisto di servizi;1;Organi e incarichi istituzionali dell'amministrazione;8;Compensi agli organi istituzionali di revisione, di controllo ed altri incarichi istituzionali dell'amministrazione;18/09/2018
1251;1;0;1.541,58;1.541,58;VITELLA ALBERTO;0;SALDO Fatt.n. 00002/PA  del 11/06/2018;18/09/2018;50;0;342;1;Spese correnti;3;Acquisto di beni e servizi;2;Acquisto di servizi;1;Organi e incarichi istituzionali dell'amministrazione;8;Compensi agli organi istituzionali di revisione, di controllo ed altri incarichi istituzionali dell'amministrazione;18/09/2018
1252;1;0;101,26;101,26;TIME-NET SRL;CIGZ1A1EDF;SALDO Fatt.n. 411/PA  del 08/08/2018;18/09/2018;595;0;455;1;Spese correnti;3;Acquisto di beni e servizi;2;Acquisto di servizi;5;Utenze e canoni;999;Utenze e canoni per altri servizi n.a.c.;18/09/2018
1253;1;0;14,57;258,57;TIME-NET SRL;CIGZ831A60;SALDO Fatt.n. 326/PA  del 07/06/2018;18/09/2018;3186;1;454;1;Spese correnti;3;Acquisto di beni e servizi;2;Acquisto di servizi;5;Utenze e canoni;999;Utenze e canoni per altri servizi n.a.c.;18/09/2018
1253;2;0;122;258,57;TIME-NET SRL;CIGZ831A60;SALDO Fatt.n. 412/PA  del 08/08/2018;18/09/2018;3186;1;454;1;Spese correnti;3;Acquisto di beni e servizi;2;Acquisto di servizi;5;Utenze e canoni;999;Utenze e canoni per altri servizi n.a.c.;18/09/2018
1253;3;0;122;258,57;TIME-NET SRL;CIGZ831A60;SALDO Fatt.n. 311/PA  del 07/06/2018;18/09/2018;3186;1;454;1;Spese correnti;3;Acquisto di beni e servizi;2;Acquisto di servizi;5;Utenze e canoni;999;Utenze e canoni per altri servizi n.a.c.;18/09/2018
1254;1;0;1.971,00;1.971,00;CONSIGLIO DI BACINO VENEZIA AMBIENTE; ;CONSIGLIO DI BACINO VENEZIA AMBIENTE -  LIQUIDAZIONE CONTRIBUTO PER IL FUNZIONAMENTO AATO ANNO 2018;18/09/2018;5855;0;329;1;Spese correnti;4;Trasferimenti correnti;4;Trasferimenti correnti a Istituzioni Sociali Private;1;Trasferimenti correnti a Istituzioni Sociali Private;1;Trasferimenti correnti a Istituzioni Sociali Private;18/09/2018
1255;1;0;292,8;292,8;CIMA-ESA  SRL;Z43236A6B9;ACCONTO Fatt.n. 000012/18/PA  del 12/07/2018;18/09/2018;590;0;219;1;Spese correnti;3;Acquisto di beni e servizi;2;Acquisto di servizi;9;Manutenzione ordinaria e riparazioni;4;Manutenzione ordinaria e riparazioni di impianti e macchinari;18/09/2018
1256;1;0;292,8;292,8;CIMA-ESA  SRL;Z43236A6B9;SALDO Fatt.n. 000012/18/PA  del 12/07/2018;18/09/2018;3181;0;221;1;Spese correnti;3;Acquisto di beni e servizi;2;Acquisto di servizi;9;Manutenzione ordinaria e riparazioni;4;Manutenzione ordinaria e riparazioni di impianti e macchinari;18/09/2018
1257;1;0;1.323,00;8.720,78;COOPERATIVA ITACA SOC. COOP. SOC. ONLUS;Z891CB8D22;SALDO Fatt.n. 1008/PA  del 30/04/2018;18/09/2018;6700;0;145;1;Spese correnti;3;Acquisto di beni e servizi;2;Acquisto di servizi;15;Contratti di servizio pubblico;9;Contratti di servizio di assistenza sociale domiciliare;18/09/2018
1257;2;0;1.697,85;8.720,78;COOPERATIVA ITACA SOC. COOP. SOC. ONLUS;Z891CB8D22;SALDO Fatt.n. 672/PA  del 31/03/2018;18/09/2018;6700;0;145;1;Spese correnti;3;Acquisto di beni e servizi;2;Acquisto di servizi;15;Contratti di servizio pubblico;9;Contratti di servizio di assistenza sociale domiciliare;18/09/2018
1257;3;0;1.752,98;8.720,78;COOPERATIVA ITACA SOC. COOP. SOC. ONLUS;Z891CB8D22;SALDO Fatt.n. 384/PA  del 28/02/2018;18/09/2018;6700;0;145;1;Spese correnti;3;Acquisto di beni e servizi;2;Acquisto di servizi;15;Contratti di servizio pubblico;9;Contratti di servizio di assistenza sociale domiciliare;18/09/2018
1257;4;0;1.852,20;8.720,78;COOPERATIVA ITACA SOC. COOP. SOC. ONLUS;Z891CB8D22;SALDO Fatt.n. 1275/PA  del 31/05/2018;18/09/2018;6700;0;145;1;Spese correnti;3;Acquisto di beni e servizi;2;Acquisto di servizi;15;Contratti di servizio pubblico;9;Contratti di servizio di assistenza sociale domiciliare;18/09/2018
1257;5;0;2.094,75;8.720,78;COOPERATIVA ITACA SOC. COOP. SOC. ONLUS;Z891CB8D22;SALDO Fatt.n. 79/PA  del 31/01/2018;18/09/2018;6700;0;145;1;Spese correnti;3;Acquisto di beni e servizi;2;Acquisto di servizi;15;Contratti di servizio pubblico;9;Contratti di servizio di assistenza sociale domiciliare;18/09/2018
1258;1;0;73,2;73,2;EUGANEA INNOVAZIONE SRL;Z2123DCFDC;SALDO Fatt.n. 84  del 23/07/2018 HARD DISK NAS 1 TB;18/09/2018;660;0;176;1;Spese correnti;3;Acquisto di beni e servizi;2;Acquisto di servizi;19;Servizi informatici e di telecomunicazioni;999;Altri servizi informatici e di telecomunicazioni n.a.c.;18/09/2018
1259;1;0;1.146,80;6.154,90;COOP  NONCELLO SOC.COOP. SOCIALE ONLUS;Z4E1D242B3;ACCONTO Fatt.n. 2018/VPA/1665  del 30/06/2018 FT.VEND.IVA DIFF. P.A.;18/09/2018;5185;0;124;1;Spese correnti;3;Acquisto di beni e servizi;2;Acquisto di servizi;9;Manutenzione ordinaria e riparazioni;8;Manutenzione ordinaria e riparazioni di beni immobili;18/09/2018
1259;2;0;1.305,40;6.154,90;COOP  NONCELLO SOC.COOP. SOCIALE ONLUS;Z4E1D242B3;ACCONTO Fatt.n. 2018/VPA/669  del 31/03/2018 FT.VEND.IVA DIFF. P.A.;18/09/2018;5185;0;124;1;Spese correnti;3;Acquisto di beni e servizi;2;Acquisto di servizi;9;Manutenzione ordinaria e riparazioni;8;Manutenzione ordinaria e riparazioni di beni immobili;18/09/2018
1259;3;0;1.714,10;6.154,90;COOP  NONCELLO SOC.COOP. SOCIALE ONLUS;Z4E1D242B3;ACCONTO Fatt.n. 2018/VPA/669  del 31/03/2018 FT.VEND.IVA DIFF. P.A.;18/09/2018;5185;0;124;1;Spese correnti;3;Acquisto di beni e servizi;2;Acquisto di servizi;9;Manutenzione ordinaria e riparazioni;8;Manutenzione ordinaria e riparazioni di beni immobili;18/09/2018
1259;4;0;1.988,60;6.154,90;COOP  NONCELLO SOC.COOP. SOCIALE ONLUS;Z4E1D242B3;ACCONTO Fatt.n. 2018/VPA/1665  del 30/06/2018 FT.VEND.IVA DIFF. P.A.;18/09/2018;5185;0;124;1;Spese correnti;3;Acquisto di beni e servizi;2;Acquisto di servizi;9;Manutenzione ordinaria e riparazioni;8;Manutenzione ordinaria e riparazioni di beni immobili;18/09/2018
1260;1;0;101,26;101,26;TIME-NET SRL;CIGZ1A1EDF;SALDO Fatt.n. 310/PA  del 07/06/2018;18/09/2018;595;0;452;1;Spese correnti;3;Acquisto di beni e servizi;2;Acquisto di servizi;5;Utenze e canoni;1;Telefonia fissa;18/09/2018
1261;1;0;575,84;575,84;DEMO SYSTEM SNC DI PIVETTA & C.;ZBF23A775B;SALDO Fatt.n. FATTPA 19_18  del 13/08/2018;18/09/2018;6214;0;164;1;Spese correnti;3;Acquisto di beni e servizi;2;Acquisto di servizi;99;Altri servizi;999;Altri servizi diversi n.a.c.;18/09/2018
1262;1;0;1.374,03;1.374,03;E. GASPARI S.R.L.;Z3E23F0D81;ACCONTO Fatt.n. 11042  del 30/06/2018;18/09/2018;400;0;309;1;Spese correnti;3;Acquisto di beni e servizi;1;Acquisto di beni;2;Altri beni di consumo;1;Carta, cancelleria e stampati;18/09/2018
1263;1;0;267,79;267,79;E. GASPARI S.R.L.;Z2D23286B6;SALDO Fatt.n. 07826  del 30/04/2018;18/09/2018;400;0;215;1;Spese correnti;3;Acquisto di beni e servizi;1;Acquisto di beni;2;Altri beni di consumo;1;Carta, cancelleria e stampati;18/09/2018
1264;1;0;462,44;462,44;E. GASPARI S.R.L.;Z2D23286B6;SALDO Fatt.n. 13361  del 31/07/2018;18/09/2018;400;0;327;1;Spese correnti;3;Acquisto di beni e servizi;1;Acquisto di beni;2;Altri beni di consumo;1;Carta, cancelleria e stampati;18/09/2018
1265;1;0;3.800,30;3.800,30;PRA VERDE DI BAVARESCO ZENOBIO;Z882496907;SALDO Fatt.n. 3/40  del 31/08/2018;18/09/2018;7371;0;343;1;Spese correnti;3;Acquisto di beni e servizi;2;Acquisto di servizi;9;Manutenzione ordinaria e riparazioni;12;Manutenzione ordinaria e riparazioni di terreni e beni materiali non prodotti;18/09/2018
1266;1;0;1.496,74;1.496,74;F.LLI BERTOLI ELETTROIMPIANTI S.N.C. DI BERTOLI G. & M.;ZBD24637E0;SALDO Fatt.n. 000006/E  del 31/07/2018;18/09/2018;580;0;321;1;Spese correnti;3;Acquisto di beni e servizi;1;Acquisto di beni;2;Altri beni di consumo;999;Altri beni e materiali di consumo n.a.c.;18/09/2018
1267;1;0;854,98;1.709,96;PIANEZZOLA CLAUDIO;Z092344006;SALDO Fatt.n. 17/01  del 31/07/2018;18/09/2018;7460;1;180;1;Spese correnti;3;Acquisto di beni e servizi;2;Acquisto di servizi;15;Contratti di servizio pubblico;15;Contratti di servizio per l'illuminazione pubblica;18/09/2018
1267;2;0;854,98;1.709,96;PIANEZZOLA CLAUDIO;Z092344006;SALDO Fatt.n. 20/01  del 31/08/2018;18/09/2018;7460;1;180;1;Spese correnti;3;Acquisto di beni e servizi;2;Acquisto di servizi;15;Contratti di servizio pubblico;15;Contratti di servizio per l'illuminazione pubblica;18/09/2018
1268;1;0;1.200,00;1.200,00;CENTRO STUDI AMMINISTRATIVI DELLA MARCA TREVIGIANA; ;CENTRO STUDI AMMINISTRATIVI DELLA MARCA TREVIGIANA - QUOTA ORGANISMO DI VALUTAZIONE ANNO 2017;18/09/2018;50;0;217;1;Spese correnti;3;Acquisto di beni e servizi;2;Acquisto di servizi;1;Organi e incarichi istituzionali dell'amministrazione;8;Compensi agli organi istituzionali di revisione, di controllo ed altri incarichi istituzionali dell'amministrazione;18/09/2018
1269;1;0;695,45;695,45;A.N.C.I. ASSOCIAZIONE NAZIONALE COMUNI ITALIANI; ;QUOTA ASSOCIATIVA ANNO 2018;18/09/2018;569;0;19;1;Spese correnti;4;Trasferimenti correnti;4;Trasferimenti correnti a Istituzioni Sociali Private;1;Trasferimenti correnti a Istituzioni Sociali Private;1;Trasferimenti correnti a Istituzioni Sociali Private;18/09/2018
1270;1;0;600;600;A.N.U.T.E.L.; ;ANUTEL -  QUOTA ASSOCIATIVA DI TIPO B;18/09/2018;569;0;264;1;Spese correnti;4;Trasferimenti correnti;4;Trasferimenti correnti a Istituzioni Sociali Private;1;Trasferimenti correnti a Istituzioni Sociali Private;1;Trasferimenti correnti a Istituzioni Sociali Private;18/09/2018
1271;1;0;231,8;231,8;PIANEZZOLA CLAUDIO;Z29236F6FA;ACCONTO Fatt.n. 18/01  del 31/07/2018;18/09/2018;590;0;181;1;Spese correnti;3;Acquisto di beni e servizi;2;Acquisto di servizi;9;Manutenzione ordinaria e riparazioni;4;Manutenzione ordinaria e riparazioni di impianti e macchinari;18/09/2018
1272;1;0;207,4;207,4;PIANEZZOLA CLAUDIO;Z29236F6FA;ACCONTO Fatt.n. 18/01  del 31/07/2018;18/09/2018;6491;0;182;1;Spese correnti;3;Acquisto di beni e servizi;2;Acquisto di servizi;9;Manutenzione ordinaria e riparazioni;4;Manutenzione ordinaria e riparazioni di impianti e macchinari;18/09/2018
1273;1;0;256,2;256,2;PIANEZZOLA CLAUDIO;Z29236F6FA;ACCONTO Fatt.n. 18/01  del 31/07/2018;18/09/2018;2801;0;183;1;Spese correnti;3;Acquisto di beni e servizi;2;Acquisto di servizi;9;Manutenzione ordinaria e riparazioni;4;Manutenzione ordinaria e riparazioni di impianti e macchinari;18/09/2018
1274;1;0;85,4;85,4;PIANEZZOLA CLAUDIO;Z29236F6FA;SALDO Fatt.n. 18/01  del 31/07/2018;18/09/2018;2971;0;184;1;Spese correnti;3;Acquisto di beni e servizi;2;Acquisto di servizi;9;Manutenzione ordinaria e riparazioni;4;Manutenzione ordinaria e riparazioni di impianti e macchinari;18/09/2018
1275;1;0;700;700;OFFICINA NADALIN SRL;ZA1246F567;ACCONTO Fatt.n. 4/PA  del 24/07/2018 Determina n. 276 del 20/07/2018;18/09/2018;3181;0;323;1;Spese correnti;3;Acquisto di beni e servizi;2;Acquisto di servizi;9;Manutenzione ordinaria e riparazioni;8;Manutenzione ordinaria e riparazioni di beni immobili;18/09/2018
1276;1;0;190,6;190,6;OFFICINA NADALIN SRL;ZA1246F567;ACCONTO Fatt.n. 4/PA  del 24/07/2018 Determina n. 276 del 20/07/2018;18/09/2018;2971;0;324;1;Spese correnti;3;Acquisto di beni e servizi;2;Acquisto di servizi;9;Manutenzione ordinaria e riparazioni;8;Manutenzione ordinaria e riparazioni di beni immobili;18/09/2018
1277;1;0;63,44;63,44;OFFICINA NADALIN SRL;ZA1246F567;SALDO Fatt.n. 4/PA  del 24/07/2018 Determina n. 276 del 20/07/2018;18/09/2018;6491;0;325;1;Spese correnti;3;Acquisto di beni e servizi;2;Acquisto di servizi;9;Manutenzione ordinaria e riparazioni;8;Manutenzione ordinaria e riparazioni di beni immobili;18/09/2018
1278;1;0;390,4;390,4;MONACO EUFEMIA;Z4B2402B62;ACCONTO Fatt.n. 38P  del 10/07/2018 Manutenzione Defibrillatori;19/09/2018;6491;0;285;1;Spese correnti;3;Acquisto di beni e servizi;2;Acquisto di servizi;9;Manutenzione ordinaria e riparazioni;5;Manutenzione ordinaria e riparazioni di attrezzature;19/09/2018
1279;1;0;195,2;195,2;MONACO EUFEMIA;Z4B2402B62;SALDO Fatt.n. 38P  del 10/07/2018 Manutenzione Defibrillatori;19/09/2018;3181;0;364;1;Spese correnti;3;Acquisto di beni e servizi;2;Acquisto di servizi;9;Manutenzione ordinaria e riparazioni;5;Manutenzione ordinaria e riparazioni di attrezzature;19/09/2018
1280;1;0;683,2;683,2;EUGANEA INNOVAZIONE SRL;ZD42313266;ACCONTO Fatt.n. 98  del 27/08/2018 CANONE FIREWALL ENDIAN;19/09/2018;660;0;144;1;Spese correnti;3;Acquisto di beni e servizi;2;Acquisto di servizi;19;Servizi informatici e di telecomunicazioni;5;Servizi per i sistemi e relativa manutenzione;19/09/2018
1281;1;0;48,8;48,8;EUGANEA INNOVAZIONE SRL;ZD42313266;SALDO Fatt.n. 98  del 27/08/2018 CANONE FIREWALL ENDIAN;19/09/2018;660;0;252;1;Spese correnti;3;Acquisto di beni e servizi;2;Acquisto di servizi;19;Servizi informatici e di telecomunicazioni;5;Servizi per i sistemi e relativa manutenzione;19/09/2018
1282;1;0;59,78;59,78;PITNEY BOWES ITALIA SRL;ZD12435DEA;SALDO Fatt.n. 002902  del 29/08/2018;19/09/2018;650;0;301;1;Spese correnti;3;Acquisto di beni e servizi;2;Acquisto di servizi;16;Servizi amministrativi;2;Spese postali;19/09/2018
1284;1;0;295,32;1.979,58;ASE ACEGASAPSAMGA SERVIZI ELETTRICI SPA;6309396649;Fatt.n. 331800001127 del 16/04/2018 ALTRI SERVIZI;20/09/2018;593;1;287;1;Spese correnti;3;Acquisto di beni e servizi;2;Acquisto di servizi;5;Utenze e canoni;6;Gas;20/09/2018
1284;2;0;1.684,26;1.979,58;ASE ACEGASAPSAMGA SERVIZI ELETTRICI SPA;6309396649;Fatt.n. 331800001126 del 16/04/2018 SERVIZIO FORNITURA CALORE - 6^ RATA STAGIONE 2017/2018;20/09/2018;593;1;287;1;Spese correnti;3;Acquisto di beni e servizi;2;Acquisto di servizi;5;Utenze e canoni;6;Gas;20/09/2018
1285;1;0;83,65;83,65;ASE ACEGASAPSAMGA SERVIZI ELETTRICI SPA;6309396649;Fatt.n. 331800001126 del 16/04/2018 SERVIZIO FORNITURA CALORE - 6^ RATA STAGIONE 2017/2018;20/09/2018;595;0;288;1;Spese correnti;3;Acquisto di beni e servizi;2;Acquisto di servizi;5;Utenze e canoni;6;Gas;20/09/2018
1286;1;0;1.215,84;1.215,84;ASE ACEGASAPSAMGA SERVIZI ELETTRICI SPA;6309396649;Fatt.n. 331800001126 del 16/04/2018 SERVIZIO FORNITURA CALORE - 6^ RATA STAGIONE 2017/2018;20/09/2018;2803;0;292;1;Spese correnti;3;Acquisto di beni e servizi;2;Acquisto di servizi;5;Utenze e canoni;6;Gas;20/09/2018
1287;1;0;2.313,73;2.313,73;ASE ACEGASAPSAMGA SERVIZI ELETTRICI SPA;6309396649;Fatt.n. 331800001126 del 16/04/2018 SERVIZIO FORNITURA CALORE - 6^ RATA STAGIONE 2017/2018;20/09/2018;2975;1;289;1;Spese correnti;3;Acquisto di beni e servizi;2;Acquisto di servizi;5;Utenze e canoni;6;Gas;20/09/2018
1288;1;0;200,4;1.707,44;ASE ACEGASAPSAMGA SERVIZI ELETTRICI SPA;6309396649;Fatt.n. 331800001127 del 16/04/2018 ALTRI SERVIZI;20/09/2018;2975;2;290;1;Spese correnti;3;Acquisto di beni e servizi;2;Acquisto di servizi;5;Utenze e canoni;6;Gas;20/09/2018
1288;2;0;1.507,04;1.707,44;ASE ACEGASAPSAMGA SERVIZI ELETTRICI SPA;6309396649;Fatt.n. 331800001126 del 16/04/2018 SERVIZIO FORNITURA CALORE - 6^ RATA STAGIONE 2017/2018;20/09/2018;2975;2;290;1;Spese correnti;3;Acquisto di beni e servizi;2;Acquisto di servizi;5;Utenze e canoni;6;Gas;20/09/2018
1289;1;0;1.947,11;1.947,11;ASE ACEGASAPSAMGA SERVIZI ELETTRICI SPA;6309396649;Fatt.n. 331800001126 del 16/04/2018 SERVIZIO FORNITURA CALORE - 6^ RATA STAGIONE 2017/2018;20/09/2018;3186;1;291;1;Spese correnti;3;Acquisto di beni e servizi;2;Acquisto di servizi;5;Utenze e canoni;6;Gas;20/09/2018
1290;1;0;888,92;888,92;ASE ACEGASAPSAMGA SERVIZI ELETTRICI SPA;6309396649;Fatt.n. 331800001126 del 16/04/2018 SERVIZIO FORNITURA CALORE - 6^ RATA STAGIONE 2017/2018;20/09/2018;3186;2;293;1;Spese correnti;3;Acquisto di beni e servizi;2;Acquisto di servizi;5;Utenze e canoni;6;Gas;20/09/2018
1291;1;0;317,61;4.854,34;ASE ACEGASAPSAMGA SERVIZI ELETTRICI SPA;6309396649;Fatt.n. 331800001127 del 16/04/2018 ALTRI SERVIZI;20/09/2018;6496;1;294;1;Spese correnti;3;Acquisto di beni e servizi;2;Acquisto di servizi;5;Utenze e canoni;6;Gas;20/09/2018
1291;2;0;4.536,73;4.854,34;ASE ACEGASAPSAMGA SERVIZI ELETTRICI SPA;6309396649;Fatt.n. 331800001126 del 16/04/2018 SERVIZIO FORNITURA CALORE - 6^ RATA STAGIONE 2017/2018;20/09/2018;6496;1;294;1;Spese correnti;3;Acquisto di beni e servizi;2;Acquisto di servizi;5;Utenze e canoni;6;Gas;20/09/2018
1292;1;0;268,4;268,4;EUGANEA INNOVAZIONE SRL;ZD42313266;SALDO Fatt.n. 92  del 25/07/2018 RINNOVO ANTIVIRUS 12 MESI;25/09/2018;660;0;252;1;Spese correnti;3;Acquisto di beni e servizi;2;Acquisto di servizi;19;Servizi informatici e di telecomunicazioni;5;Servizi per i sistemi e relativa manutenzione;25/09/2018
1296;1;0;74.768,16;74.768,16;A.S.V.O. SPA AMBIENTE SERVIZI VENEZIA ORIENTALE; ;SALDO Fatt.n. 000040  del 31/07/2018 CORRISPETTIVO SERVIZIO RACCOLTA RIFIUTI - II TRIMESTRE 2018;27/09/2018;5833;0;302;1;Spese correnti;3;Acquisto di beni e servizi;2;Acquisto di servizi;15;Contratti di servizio pubblico;4;Contratti di servizio per la raccolta rifiuti;27/09/2018
1297;1;0;0,43;102,5;POSTE ITALIANE S.p.A.;Z791C12F98;SALDO Fatt.n. 8017197683  del 17/10/2017 Versamento diretto dell'IVA verso l'Erario a carico del committente;27/09/2018;650;0;300;1;Spese correnti;3;Acquisto di beni e servizi;2;Acquisto di servizi;16;Servizi amministrativi;2;Spese postali;27/09/2018
1297;2;0;0,84;102,5;POSTE ITALIANE S.p.A.;Z791C12F98;SALDO Fatt.n. 8017250471  del 19/12/2017 Versamento diretto dell'IVA verso l'Erario a carico del committente;27/09/2018;650;0;300;1;Spese correnti;3;Acquisto di beni e servizi;2;Acquisto di servizi;16;Servizi amministrativi;2;Spese postali;27/09/2018
1297;3;0;0,99;102,5;POSTE ITALIANE S.p.A.;Z791C12F98;SALDO Fatt.n. 8017171863  del 13/09/2017 Versamento diretto dell'IVA verso l'Erario a carico del committente;27/09/2018;650;0;300;1;Spese correnti;3;Acquisto di beni e servizi;2;Acquisto di servizi;16;Servizi amministrativi;2;Spese postali;27/09/2018
1297;4;0;0,99;102,5;POSTE ITALIANE S.p.A.;Z791C12F98;SALDO Fatt.n. 8018054939  del 14/03/2018 Versamento diretto dell'IVA verso l'Erario a carico del committente;27/09/2018;650;0;300;1;Spese correnti;3;Acquisto di beni e servizi;2;Acquisto di servizi;16;Servizi amministrativi;2;Spese postali;27/09/2018
1297;5;0;1,03;102,5;POSTE ITALIANE S.p.A.;Z791C12F98;SALDO Fatt.n. 8017156924  del 10/08/2017 Versamento diretto dell'IVA verso l'Erario a carico del committente;27/09/2018;650;0;300;1;Spese correnti;3;Acquisto di beni e servizi;2;Acquisto di servizi;16;Servizi amministrativi;2;Spese postali;27/09/2018
1297;6;0;1,1;102,5;POSTE ITALIANE S.p.A.;ZC1243684F;SALDO Fatt.n. 2018047174  del 11/04/2018 versamento diretto dell'IVAÂ Â verso l'Erario a carico del committente;27/09/2018;650;0;300;1;Spese correnti;3;Acquisto di beni e servizi;2;Acquisto di servizi;16;Servizi amministrativi;2;Spese postali;27/09/2018
1297;7;0;1,4;102,5;POSTE ITALIANE S.p.A.;Z791C12F98;SALDO Fatt.n. 8017250357  del 19/12/2017 Versamento diretto dell'IVA verso l'Erario a carico del committente;27/09/2018;650;0;300;1;Spese correnti;3;Acquisto di beni e servizi;2;Acquisto di servizi;16;Servizi amministrativi;2;Spese postali;27/09/2018
1297;8;0;1,43;102,5;POSTE ITALIANE S.p.A.;Z791C12F98;SALDO Fatt.n. 8018103065  del 24/05/2018 Versamento diretto dell'IVA verso l'Erario a carico del committente;27/09/2018;650;0;300;1;Spese correnti;3;Acquisto di beni e servizi;2;Acquisto di servizi;16;Servizi amministrativi;2;Spese postali;27/09/2018
1297;9;0;1,57;102,5;POSTE ITALIANE S.p.A.;Z791C12F98;SALDO Fatt.n. 8018055860  del 14/03/2018 Versamento diretto dell'IVA verso l'Erario a carico del committente;27/09/2018;650;0;300;1;Spese correnti;3;Acquisto di beni e servizi;2;Acquisto di servizi;16;Servizi amministrativi;2;Spese postali;27/09/2018
1297;10;0;1,6;102,5;POSTE ITALIANE S.p.A.;ZC1243684F;SALDO Fatt.n. 8017116262  del 14/06/2017 Versamento diretto dell'IVA verso l'Erario a carico del committente;27/09/2018;650;0;300;1;Spese correnti;3;Acquisto di beni e servizi;2;Acquisto di servizi;16;Servizi amministrativi;2;Spese postali;27/09/2018
1297;11;0;1,69;102,5;POSTE ITALIANE S.p.A.;Z791C12F98;SALDO Fatt.n. 8018025840  del 29/01/2018 Versamento diretto dell'IVA verso l'Erario a carico del committente;27/09/2018;650;0;300;1;Spese correnti;3;Acquisto di beni e servizi;2;Acquisto di servizi;16;Servizi amministrativi;2;Spese postali;27/09/2018
1297;12;0;1,82;102,5;POSTE ITALIANE S.p.A.;Z791C12F98;SALDO Fatt.n. 8018115322  del 12/06/2018 Versamento diretto dell'IVA verso l'Erario a carico del committente;27/09/2018;650;0;300;1;Spese correnti;3;Acquisto di beni e servizi;2;Acquisto di servizi;16;Servizi amministrativi;2;Spese postali;27/09/2018
1297;13;0;1,87;102,5;POSTE ITALIANE S.p.A.;Z791C12F98;SALDO Fatt.n. 8017234492  del 29/11/2017 Versamento diretto dell'IVA verso l'Erario a carico del committente;27/09/2018;650;0;300;1;Spese correnti;3;Acquisto di beni e servizi;2;Acquisto di servizi;16;Servizi amministrativi;2;Spese postali;27/09/2018
1297;14;0;1,98;102,5;POSTE ITALIANE S.p.A.;Z791C12F98;SALDO Fatt.n. 8017172525  del 14/09/2017 Versamento diretto dell'IVA verso l'Erario a carico del committente;27/09/2018;650;0;300;1;Spese correnti;3;Acquisto di beni e servizi;2;Acquisto di servizi;16;Servizi amministrativi;2;Spese postali;27/09/2018
1297;15;0;1,99;102,5;POSTE ITALIANE S.p.A.;Z791C12F98;SALDO Fatt.n. 8018083607  del 20/04/2018 Versamento diretto dell'IVA verso l'Erario a carico del committente;27/09/2018;650;0;300;1;Spese correnti;3;Acquisto di beni e servizi;2;Acquisto di servizi;16;Servizi amministrativi;2;Spese postali;27/09/2018
1297;16;0;2,13;102,5;POSTE ITALIANE S.p.A.;Z791C12F98;SALDO Fatt.n. 8017234673  del 29/11/2017 Versamento diretto dell'IVA verso l'Erario a carico del committente;27/09/2018;650;0;300;1;Spese correnti;3;Acquisto di beni e servizi;2;Acquisto di servizi;16;Servizi amministrativi;2;Spese postali;27/09/2018
1297;17;0;2,52;102,5;POSTE ITALIANE S.p.A.;Z791C12F98;SALDO Fatt.n. 8018033142  del 14/02/2018 Versamento diretto dell'IVA verso l'Erario a carico del committente;27/09/2018;650;0;300;1;Spese correnti;3;Acquisto di beni e servizi;2;Acquisto di servizi;16;Servizi amministrativi;2;Spese postali;27/09/2018
1297;18;0;2,56;102,5;POSTE ITALIANE S.p.A.;Z791C12F98;SALDO Fatt.n. 8017197821  del 17/10/2017 Versamento diretto dell'IVA verso l'Erario a carico del committente;27/09/2018;650;0;300;1;Spese correnti;3;Acquisto di beni e servizi;2;Acquisto di servizi;16;Servizi amministrativi;2;Spese postali;27/09/2018
1297;19;0;2,95;102,5;POSTE ITALIANE S.p.A.;Z791C12F98;SALDO Fatt.n. 8018103298  del 24/05/2018 Versamento diretto dell'IVA verso l'Erario a carico del committente;27/09/2018;650;0;300;1;Spese correnti;3;Acquisto di beni e servizi;2;Acquisto di servizi;16;Servizi amministrativi;2;Spese postali;27/09/2018
1297;20;0;3,9;102,5;POSTE ITALIANE S.p.A.;Z791C12F98;SALDO Fatt.n. 8018129858  del 12/07/2018 Versamento diretto dell'IVA verso l'Erario a carico del committente;27/09/2018;650;0;300;1;Spese correnti;3;Acquisto di beni e servizi;2;Acquisto di servizi;16;Servizi amministrativi;2;Spese postali;27/09/2018
1297;21;0;4,35;102,5;POSTE ITALIANE S.p.A.;Z791C12F98;SALDO Fatt.n. 8018164719  del 13/09/2018 Versamento diretto dell'IVA verso l'Erario a carico del committente;27/09/2018;650;0;300;1;Spese correnti;3;Acquisto di beni e servizi;2;Acquisto di servizi;16;Servizi amministrativi;2;Spese postali;27/09/2018
1297;22;0;5,25;102,5;POSTE ITALIANE S.p.A.;Z791C12F98;SALDO Fatt.n. 8018032849  del 14/02/2018 Versamento diretto dell'IVA verso l'Erario a carico del committente;27/09/2018;650;0;300;1;Spese correnti;3;Acquisto di beni e servizi;2;Acquisto di servizi;16;Servizi amministrativi;2;Spese postali;27/09/2018
1297;23;0;5,52;102,5;POSTE ITALIANE S.p.A.;Z791C12F98;SALDO Fatt.n. 8017155810  del 10/08/2017 Versamento diretto dell'IVA verso l'Erario a carico del committente;27/09/2018;650;0;300;1;Spese correnti;3;Acquisto di beni e servizi;2;Acquisto di servizi;16;Servizi amministrativi;2;Spese postali;27/09/2018
1297;24;0;6,33;102,5;POSTE ITALIANE S.p.A.;ZC1243684F;SALDO Fatt.n. 8017124084  del 07/07/2017 Versamento diretto dell'IVA verso l'Erario a carico del committente;27/09/2018;650;0;300;1;Spese correnti;3;Acquisto di beni e servizi;2;Acquisto di servizi;16;Servizi amministrativi;2;Spese postali;27/09/2018
1297;25;0;7,15;102,5;POSTE ITALIANE S.p.A.;Z791C12F98;SALDO Fatt.n. 8018146446  del 08/08/2018 Versamento diretto dell'IVA verso l'Erario a carico del committente;27/09/2018;650;0;300;1;Spese correnti;3;Acquisto di beni e servizi;2;Acquisto di servizi;16;Servizi amministrativi;2;Spese postali;27/09/2018
1297;26;0;12,67;102,5;POSTE ITALIANE S.p.A.;Z791C12F98;SALDO Fatt.n. 8017097152  del 17/05/2017 Versamento diretto dell'IVA verso l'Erario a carico del committente;27/09/2018;650;0;300;1;Spese correnti;3;Acquisto di beni e servizi;2;Acquisto di servizi;16;Servizi amministrativi;2;Spese postali;27/09/2018
1297;27;0;26,44;102,5;POSTE ITALIANE S.p.A.;Z791C12F98;SALDO Fatt.n. 8018083481  del 20/04/2018 Versamento diretto dell'IVA verso l'Erario a carico del committente;27/09/2018;650;0;300;1;Spese correnti;3;Acquisto di beni e servizi;2;Acquisto di servizi;16;Servizi amministrativi;2;Spese postali;27/09/2018
1301;1;0;305;305;L'UFFICIO SRL;ZAD22DE582;SALDO Fatt.n. 70/P  del 23/04/2018 FATTURA PA;28/09/2018;404;0;253;1;Spese correnti;3;Acquisto di beni e servizi;2;Acquisto di servizi;16;Servizi amministrativi;999;Altre spese per servizi amministrativi;28/09/2018
1302;1;0;921,47;921,47;L'UFFICIO SRL;Z491C725FE;SALDO Fatt.n. 109/P  del 25/07/2018 FATTURA PA;28/09/2018;403;0;135;1;Spese correnti;3;Acquisto di beni e servizi;2;Acquisto di servizi;7;Utilizzo di beni di terzi;8;Noleggi di impianti e macchinari;28/09/2018
1303;1;0;-0,01;270,1;INCISORIA VENETA DI MANUELA MENEGUZZI;Z3D23906F5;ACCONTO Fatt.n. 06/01  del 09/07/2018 VENDITA;28/09/2018;3193;0;267;1;Spese correnti;3;Acquisto di beni e servizi;1;Acquisto di beni;2;Altri beni di consumo;12;Accessori per attività sportive e ricreative;28/09/2018
1303;2;0;270,11;270,1;INCISORIA VENETA DI MANUELA MENEGUZZI;Z3D23906F5;SALDO Fatt.n. 06/01  del 09/07/2018 VENDITA;28/09/2018;3193;0;267;1;Spese correnti;3;Acquisto di beni e servizi;1;Acquisto di beni;2;Altri beni di consumo;12;Accessori per attività sportive e ricreative;28/09/2018
1304;1;0;528,85;528,85;LEGGERE SRL;Z7C240C4CC;SALDO Fatt.n. 12775  del 31/07/2018;28/09/2018;3755;0;295;1;Spese correnti;3;Acquisto di beni e servizi;1;Acquisto di beni;1;Giornali, riviste e pubblicazioni;2;Pubblicazioni;28/09/2018
